Cogmind - Beta 13 @@@ ROGUE MODE // 2024.03.13 @ 22:28:27 Player: Terminus Result: Destroyed by H-88 Terminator with KE Penetrator Performance ------------- Evolutions (8) 4000 Regions Visited (32) 6400 Robots Destroyed (763) 3815 Value Destroyed (38353) 38353 Prototype IDs (225) 4500 Alien Tech Used (5) 1000 Bonus (32208) 32208 TOTAL SCORE: 90276 Bonus ------- Triggered High Security 1000 High Alert Combat Kills 16940 Follower Combat Kills 1602 Network Hubs Disabled 200 Met Data Miner 300 Used Data Conduit 3000 Met Imprinter 300 Met Warlord at Base 500 MAIN.C Attacked Warlord 500 Warlord Defense Kills 1420 Met R17 at Cetus 500 Met R17 at Research 2000 Met Warlord at Research 2000 Scanned by Researcher 1000 Pursued by Intercept 1500 Friendly Fire -554 Cogmind --------- Core Integrity 0/1450 Matter 285/300 Energy 60/100 System Corruption 22% Temperature Cool (0) Movement Core (50) Location -2/Section 7 Parts ------- > --- POWER (3) -------- (None) > --- PROPULSION (4) --- (None) > --- UTILITY (10) ----- Advanced Salvage Targeting Computer Experimental Core Analyzer Experimental Core Analyzer > --- WEAPON (6) ------- (None) > --- INVENTORY (5) ---- Light Quantum Reactor Variable Charge Gun Enhanced Nova Cannon Peak State ------------ > --- POWER ------------ Quantum Reactor Vortex Chain Reactor > --- PROPULSION ------- High-density Centrium Heavy Treads High-density Centrium Heavy Treads > --- UTILITY ---------- Advanced Cooling System Huge Storage Unit Experimental Sensor Array Advanced Signal Interpreter Advanced Salvage Targeting Computer SHELL Armor AEGIS Remote Shield System Mapper > --- WEAPON ----------- Improved KE Penetrator Enhanced Coil Gun Railgun Railgun Helical Railgun Multirail > --- INVENTORY -------- Improved Quantum Reactor Improved Quantum Reactor Improved Heavy Siege Treads Improved Heavy Siege Treads Advanced Cooling System Energy Well Advanced Matter Compressor Experimental Armor Integrity Analyzer Advanced Kinecellerator Improved Weapon Cycler Graphene Brace Long-range Tractor Beam Long-range Tractor Beam Variable Charge Gun KE Penetrator KE Penetrator KE Penetrator KE Penetrator Linked Autogun Hellfire Missile Launcher Core Stripper [Rating: 214] Favorites ----------- Power Enhanced Nuclear Core Engine Reinforced Ion Engine Power Core Enhanced Nuclear Core Reactor Antimatter Reactor Propulsion Advanced Treads Treads Advanced Treads Wheel Compact Wheel Flight Unit Cooled Q-thruster Utility Huge Storage Unit Device Experimental Sensor Array Storage Huge Storage Unit Processor Improved Targeting Computer Hackware Advanced Hacking Suite Protection Hardened Light Armor Plating Weapon Improved Assault Rifle Energy Gun Backup Laser III Energy Cannon Nova Cannon Ballistic Gun Improved Assault Rifle Ballistic Cannon Mini Assault Cannon Launcher Hellfire Missile Launcher Special Weapon RU-N14's Throwing Claymores Piercing Weapon Spear Build | -11 -10 -10 -9 -9 -8 -7 -7 -7 -7 -6 -6 -6 -6 -6 -5 -5 -5 -5 -5 -5 -4 -4 -4 -4 -4 -4 -3 -3 -3 -2 -2 -2 ------- Run | Yrd Mat Min Mat Min Mat Fac Low Low Zio Pro Fac Low Low Dat Pro Fac Ext Cet Arc Hub Fac Was Fac Upp Upp War Pro Res Tes Res Qua Sec Slots Evolved 16 | . . . 2 . 2 2 . . . . 2 . . . . 2 . . . . 2 . . . . . . 2 . 2 . . Power 2 | . . . . . . . . . . . . . . . . . . . . . 1 . . . . . . 1 . . . . Propulsion 2 | . . . . . 1 . . . . . 1 . . . . . . . . . . . . . . . . . . . . . Utility 8 | . . . 1 . 1 1 . . . . 1 . . . . 1 . . . . 1 . . . . . . 1 . 1 . . Weapon 4 | . . . 1 . . 1 . . . . . . . . . 1 . . . . . . . . . . . . . 1 . . Parts Attached 740 | 6 9 9 27 2 26 37 1 7 16 17 49 8 6 12 . 20 21 21 6 11 35 31 51 10 10 29 6 8 54 19 77 99 Power 38 | 1 1 1 3 . . 2 . . . . 2 . 1 1 . . 1 2 . 1 . 3 3 1 . 3 . 1 2 . 3 6 Engine 11 | 1 1 1 3 . . 1 . . . . 1 . 1 1 . . 1 . . . . . . . . . . . . . . . Core 6 | . . . . . . 1 . . . . 1 . . . . . . 1 . . . 1 . 1 . 1 . . . . . . Reactor 21 | . . . . . . . . . . . . . . . . . . 1 . 1 . 2 3 . . 2 . 1 2 . 3 6 Propulsion 73 | 2 2 1 5 . 6 . . . 1 . 3 2 1 1 . 2 4 3 . 2 5 8 9 1 4 2 . . 2 . 4 3 Treads 69 | 2 2 1 5 . 6 . . . 1 . 3 2 1 1 . 2 4 3 . 2 2 8 9 1 4 2 . . 2 . 4 2 Leg . | . . . . . . . . . . . . . . . . . . . . . . . . . . . . . . . . . Wheel 3 | . . . . . . . . . . . . . . . . . . . . . 3 . . . . . . . . . . . Hover . | . . . . . . . . . . . . . . . . . . . . . . . . . . . . . . . . . Flight 1 | . . . . . . . . . . . . . . . . . . . . . . . . . . . . . . . . 1 Utility 383 | 1 3 1 6 . 6 22 . 5 7 13 34 3 2 6 . 14 10 12 4 8 15 20 17 5 3 11 3 6 31 13 53 49 Device 288 | . . . 1 . 3 13 . 3 4 8 22 3 2 3 . 10 9 8 4 4 10 17 11 3 1 6 3 5 29 12 52 42 Storage 11 | 1 2 1 . . . . . . . 1 . . . . . 1 . . . . . . 1 1 1 2 . . . . . . Processor 17 | . 1 . . . 1 2 . . . 1 1 . . . . . . 1 . . . . 1 . 1 2 . . . . 1 5 Hackware 8 | . . . . . 1 . . . 1 . . . . . . 1 . . . . 3 . . . . . . 1 1 . . . Protection 59 | . . . 5 . 1 7 . 2 2 3 11 . . 3 . 2 1 3 . 4 2 3 4 1 . 1 . . 1 1 . 2 Artifact . | . . . . . . . . . . . . . . . . . . . . . . . . . . . . . . . . . Weapon 246 | 2 3 6 13 2 14 13 1 2 8 4 10 3 2 4 . 4 6 4 2 . 15 . 22 3 3 13 3 1 19 6 17 41 Energy Gun 10 | . . . . . . . . . . . . . . . . . . . . . 1 . 5 . . . . . . 1 3 . Energy Cannon 14 | . . . . . . . . . . . . . . . . . . . . . . . . . 1 . . . 5 1 . 7 Ballistic Gun 188 | 2 3 4 11 1 9 9 1 2 4 2 8 2 1 3 . 3 6 4 2 . 14 . 15 3 2 13 3 1 12 4 14 30 Ballistic Cannon 1 | . . . . . 1 . . . . . . . . . . . . . . . . . . . . . . . . . . . Launcher 20 | . . 2 2 1 4 . . . . 2 . . 1 . . . . . . . . . 2 . . . . . 2 . . 4 Special Weapon 4 | . . . . . . . . . 4 . . . . . . . . . . . . . . . . . . . . . . . Impact Weapon . | . . . . . . . . . . . . . . . . . . . . . . . . . . . . . . . . . Slashing Weapon . | . . . . . . . . . . . . . . . . . . . . . . . . . . . . . . . . . Piercing Weapon 9 | . . . . . . 4 . . . . 2 1 . 1 . 1 . . . . . . . . . . . . . . . . Special Melee Weapon . | . . . . . . . . . . . . . . . . . . . . . . . . . . . . . . . . . Unidentified Prototypes 20 | . . . 1 . 1 2 . . 1 . 1 . . . . . . . . . 2 . . . . . . 1 2 1 2 6 Corrupted Parts 1 | . . . . . . . . . . . . . . . . . . . . . . . . . . . 1 . . . . . System Corruption 1 | . . . . . . . . . . . . . . . . . . . . . . . . . . . 1 . . . . . Parts Lost 138 | . 4 1 2 . 1 1 . 2 . . 4 . . 6 . 3 . 2 . 11 14 . 35 . 2 . . . 6 1 7 36 Power 13 | . 1 . . . . . . . . . . . . 1 . . . 1 . 1 . . 4 . . . . . . . 2 3 Propulsion 23 | . 1 1 . . . . . . . . 1 . . 1 . 2 . . . 2 1 . 7 . 1 . . . 1 . . 5 Utility 41 | . . . 1 . 1 1 . 1 . . 1 . . 2 . . . . . 3 5 . 10 . 1 . . . 3 1 1 10 Weapon 61 | . 2 . 1 . . . . 1 . . 2 . . 2 . 1 . 1 . 5 8 . 14 . . . . . 2 . 4 18 Highest Loss Streak 25 | . 2 1 1 . 1 1 . 2 . . 2 . . 3 . 2 . 1 . 9 10 . 25 . 1 . . . 3 1 4 16 To Critical Strikes 4 | . . . . . . . . . . . 2 . . . . . . . . . 1 . . . . . . . . . . 1 Average Slot Usage (%) 92 | . 98 100 99 100 99 99 100 99 95 100 99 100 99 97 100 99 99 90 88 82 82 84 84 40 53 77 84 79 79 78 78 72 Engine 4 | . 13 14 11 11 9 6 . . . . . . 3 6 6 5 5 . . . . . . . . 2 . . . . . . Core 1 | . . . . . . . 7 7 7 7 6 6 2 . . . . . . . . 3 4 . . . . . . . . . Reactor 2 | . . . . . . . . . . . . . . . . . . 3 5 4 5 5 4 . . 6 10 9 8 8 8 6 Treads 19 | . 27 28 21 22 26 23 23 23 23 23 25 26 25 26 26 22 23 13 11 11 7 7 9 3 14 10 10 9 8 8 8 7 Device 8 | . . . . . 9 13 15 14 15 14 10 6 6 6 13 9 10 5 5 4 7 9 12 9 10 5 5 8 11 14 13 15 Storage 7 | . 14 14 11 11 9 7 7 7 7 7 6 6 6 6 6 5 5 5 5 5 5 5 5 5 3 4 5 4 4 4 4 3 Processor 10 | . 12 14 11 11 8 7 7 7 7 7 13 13 13 13 13 11 11 17 17 17 12 10 10 15 15 15 15 14 12 6 7 8 Hackware 3 | . . . . . . 7 7 7 7 7 6 6 6 3 . 4 5 5 5 5 7 5 5 5 5 5 5 4 3 4 4 1 Protection 4 | . . . 10 11 9 1 . . . . 2 6 6 6 6 6 5 5 5 6 4 5 4 . . 1 5 4 4 4 4 2 Ballistic Gun 26 | . 27 27 32 32 26 28 30 29 25 29 25 25 25 24 26 27 29 29 29 24 25 26 23 . 3 20 26 23 21 24 25 22 Naked Turns . | . . . . . . . . . . . . . . . . . . . . . . . . . . . . . . . . . Heaviest Build 221 | 12 47 89 104 104 110 111 107 109 117 126 131 114 117 131 120 131 127 134 137 137 150 173 167 12 12 150 157 196 209 221 219 218 Greatest Support 180 | 40 40 40 46 46 69 65 65 65 65 62 86 92 92 92 92 98 110 160 160 160 160 150 140 3 3 150 150 150 165 165 180 180 Greatest Overweight (x) 5 | 2 1 2 2 2 1 1 1 1 1 2 1 1 1 1 1 1 1 1 . . 3 5 2 3 3 1 1 1 1 1 1 1 Average Overweight (x) 1 | . . 1 2 2 1 1 1 1 1 1 1 1 1 1 1 1 1 . . . 1 2 . 2 . . . 1 1 1 1 . Largest Inventory Capacity 25 | 8 20 25 25 25 25 25 25 25 25 25 25 25 25 25 25 25 25 25 25 25 25 25 25 25 5 25 25 25 25 25 25 25 Average Capacity 24 | 6 19 23 25 25 25 25 25 25 25 25 25 25 25 25 25 25 25 25 25 25 25 25 25 5 5 24 25 25 25 25 25 24 Most Carried 25 | 1 20 25 25 25 25 25 25 25 25 25 25 25 25 25 24 25 25 25 25 25 18 24 25 5 5 25 25 25 25 25 25 25 Average Carried 22 | . 15 23 24 25 24 24 25 24 24 24 24 25 24 23 23 22 24 24 25 23 12 20 21 4 4 11 25 24 23 23 24 19 Final Capacity 25 | 8 20 25 25 25 25 25 25 25 25 25 25 25 25 25 25 25 25 25 25 25 25 25 25 5 5 25 25 25 25 25 25 5 Final Carried 25 | 1 20 25 25 25 25 25 25 25 25 25 25 25 25 23 24 25 25 25 25 17 16 24 4 5 4 25 25 25 21 25 25 3 Class Distribution -------------------- 20% | Skirmisher 16% | Scavenger-Skirmisher 14% | Scavenger-Gunner 11% | Gunner 10% | Scavenger-Executioner 8% | Mutant 7% | Tank 3% | Scavenger-Tank Dominant Class ---------------- Mutant | -10/Materials Scavenger-Mutant | -10/Mines Gunner | -9/Materials Gunner | -9/Mines Tank | -8/Materials Skirmisher | -7/Factory Skirmisher | -7/Lower Caves Skirmisher | -7/Lower Caves Skirmisher | -7/Zion Skirmisher | -6/Proximity Caves Skirmisher | -6/Factory Scavenger-Skirmisher | -6/Lower Caves Scavenger-Skirmisher | -6/Lower Caves Scavenger-Skirmisher | -6/Data Miner Scavenger-Tank | -5/Proximity Caves Scavenger-Skirmisher | -5/Factory Scavenger-Skirmisher | -5/Extension Scavenger-Skirmisher | -5/Cetus Scavenger-Gunner | -5/Archives Scavenger-Gunner | -5/Hub_04(d) Scavenger-Gunner | -4/Factory Scavenger-Skirmisher | -4/Waste Scavenger-Skirmisher | -4/Factory Mutant | -4/Upper Caves Mutant | -4/Upper Caves Derelict-Gunner | -4/Warlord Scavenger-Gunner | -3/Proximity Caves Scavenger-Gunner | -3/Research Scavenger-Gunner | -3/Testing Scavenger-Executioner | -2/Research Scavenger-Executioner | -2/Quarantine Scavenger-Executioner | -2/Section 7 Resources | -11 -10 -10 -9 -9 -8 -7 -7 -7 -7 -6 -6 -6 -6 -6 -5 -5 -5 -5 -5 -5 -4 -4 -4 -4 -4 -4 -3 -3 -3 -2 -2 -2 ----------- Run | Yrd Mat Min Mat Min Mat Fac Low Low Zio Pro Fac Low Low Dat Pro Fac Ext Cet Arc Hub Fac Was Fac Upp Upp War Pro Res Tes Res Qua Sec Matter Collected 35767 | 227 398 176 1235 151 1448 1371 128 240 172 975 1567 157 231 427 96 713 779 652 271 405 2031 1215 2648 204 209 595 173 376 2540 1268 6422 6267 Remotely 19291 | . . . . . . 401 . . . 635 815 . . . . 237 . 465 . 227 1067 682 1280 . . . . . 2267 1050 5139 5026 Salvage Created 46414 | . 757 88 2253 274 2199 1704 85 287 48 668 1654 85 200 427 . 1215 1460 896 459 1450 2879 1661 3625 249 46 513 172 301 3105 1834 6629 9191 Parts 2299 | . 55 10 165 16 126 98 7 7 10 24 88 5 5 17 . 48 63 62 27 71 161 31 154 11 3 15 14 14 140 70 322 460 Haulers Intercepted 31 | . 2 . 5 . 4 2 . . . . 3 . . . . 4 . . . 2 . . 1 . . . . 1 . 3 2 2 Recyclers Shooed 21 | . . . 3 . 2 2 . . . . 5 . . . . 1 4 . . . 2 . 1 . . . . . . . 1 . Parts Field Recycled . | . . . . . . . . . . . . . . . . . . . . . . . . . . . . . . . . . Retrieved Matter . | . . . . . . . . . . . . . . . . . . . . . . . . . . . . . . . . . Parts Self-Destructed 71 | . . . . . . . 10 7 . 23 . . 8 . . . . . . . . . . 9 . . 14 . . . . . Prevented 1 | . . . . . . . . 1 . . . . . . . . . . . . . . . . . . . . . . . . Kills | -11 -10 -10 -9 -9 -8 -7 -7 -7 -7 -6 -6 -6 -6 -6 -5 -5 -5 -5 -5 -5 -4 -4 -4 -4 -4 -4 -3 -3 -3 -2 -2 -2 ------- Run | Yrd Mat Min Mat Min Mat Fac Low Low Zio Pro Fac Low Low Dat Pro Fac Ext Cet Arc Hub Fac Was Fac Upp Upp War Pro Res Tes Res Qua Sec Combat Hostiles Destroyed 585 | . 17 7 42 9 40 19 2 4 1 19 24 1 6 4 . 8 18 13 4 12 27 6 45 4 . 9 5 3 41 22 60 113 Melee 2 | . . . . . . . . . . . . . . . . . . . . . . . . . . . . . 1 . . 1 Guns 507 | . 17 4 34 6 28 19 2 4 1 13 24 1 3 4 . 8 18 13 4 12 27 6 41 4 . 9 5 3 30 22 60 85 Cannons 1 | . . . . . . . . . . . . . . . . . . . . . . . . . . . . . 1 . . . AOE 73 | . . 3 8 3 12 . . . . 6 . . 3 . . . . . . . . . 4 . . . . . 8 . . 26 Classes Destroyed 32 | . 6 1 7 . 1 1 . . 1 . 1 1 . . . 1 1 . . 1 . 1 1 . 1 1 . . 1 2 3 . Worker 50 | . . . 6 1 9 4 . . . . 4 . . . . 1 . . . 7 2 . 6 . . . . . 4 1 2 3 Builder 34 | . . . 2 . 1 3 . . . . 1 . . . . 1 1 . . 4 8 . 5 . . . . . 2 1 4 1 Tunneler 7 | . . . 1 1 1 2 . . . . . . . . . 1 . . . . . . 1 . . . . . . . . . Hauler 31 | . 2 . 5 . 4 2 . . . . 3 . . . . 4 . . . 2 . . 1 . . . . 1 . 3 2 2 Recycler 29 | . 1 . 3 . 2 3 . . . . 1 . . . . 2 3 . . 2 3 . 3 . . . . . 2 . 2 2 Carrier 1 | . . . . . . . . . . . . . . . . . . . . . . . . . . . . . . . 1 . Mechanic 11 | . . . . . 1 . . . . . . . . . . . . . . . 1 . 2 . . . . . 1 . 1 5 Operator 6 | . 1 . 1 . . 1 . . . . . . . . . . . . 1 . . . . . . . . . . . . 2 Watcher 29 | . 3 . 5 . 3 3 . . . . 1 . . . . 1 2 2 . . 2 . 2 . . . . . 2 . 1 2 Swarmer 73 | . 6 5 4 3 7 . . . . 8 7 . . . . . 7 4 . 5 . . 4 4 . . 5 . . 4 . . Saboteur 13 | . . . . . . . . . . . . . . . . . . . . . . . 1 . . . . . 2 . 2 8 Grunt 219 | . 11 . 23 4 24 8 . 3 . 8 6 . 5 . . 4 3 . . 2 9 . 19 . . 3 . 3 13 5 28 38 Brawler 20 | . . . 1 . 2 . . . . 1 . . . . . . . . . . 1 . 5 . . 1 . . 3 . . 6 Duelist 24 | . . . 3 2 . . . 1 . 1 1 . 1 . . . . . . . . . . . . . . . 4 . 4 7 Protector 8 | . . . 2 . . . . . . . . . . . . . . . . . 1 . 1 . . . . . . . 1 3 Researcher 6 | . . . . . . . . . . . . . . . . . . . . . . . . . . . . . 3 . . 3 Sentry 46 | . . . 9 . 7 6 . . . 1 1 . . . . . 6 . 4 2 . . 2 . . . . . 2 . 2 4 Demolisher 3 | . . . . . . . . . . . . . . . . . . . . . . . . . . . . . . 3 . . Specialist 3 | . . . . . . . . . . . . . . . . 2 . . . . . . . . . 1 . . . . . . Hunter 63 | . . . . . . . . . . . 6 . . . . . 1 1 . 2 12 . 7 . . . . . 8 . 13 13 Programmer 57 | . . . . . . 5 2 . . . 3 . . . . 2 . . . . 4 . 5 . . 1 . . 7 3 8 17 Heavy 2 | . . . . . . . . . . . . . . . . . . . . 1 . . 1 . . . . . . . . . Q-Series 1 | . . . . . . . . . . . . . . . . . . . . . . . . . . . . . . . 1 . Behemoth 4 | . . . . . . . . . . . . . . . . . 1 . . . . . . . . 2 . . . . . 1 Compactor 6 | . . . . . . . . . . . . . . . . . . . . . . 6 . . . . . . . . . . Cetus Guard 8 | . . . . . . . . . . . . . . . . . . 8 . . . . . . . . . . . . . . S7 Guard 3 | . . . . . . . . . . . . . . . . . . . . . . . . . . . . . . . . 3 Enhanced Grunt 4 | . . . . . . . . . . . . . . 4 . . . . . . . . . . . . . . . . . . Tracker 3 | . . . . . . . . . . . . . . . . . . . . . . . . . . . . . 1 1 . 1 Combat Programmer 1 | . . . . . . . . . . . . . . . . . . . . . . . . . . . . . 1 . . . Investigator 1 | . . . . . . . . . . . . . . . . . . . . . . . . . . . . . . . . 1 Striker 13 | . . . . . . . . . . . . . . . . . . . . . . . . . . 1 . . . 5 . 7 Executioner 6 | . . . . . . . . . . . . . . . . . . . . . . . . . . . . . . 1 . 5 Fortress 1 | . . . . . . . . . . . . . . . . . . . . . . . . . . . . . . . 1 . Decomposer 2 | . . . . . . . . . . . . 1 . . . . . . . . . . . 1 . . . . . . . . Packrat 2 | . . . . . . . . . . . . . . . . . . . . . . . . 2 . . . . . . . . Samaritan 1 | . . . . . . . . . . . . . . . . . . . . . . . . . 1 . . . . . . . Tinkerer 1 | . . . . . . . . . 1 . . . . . . . . . . . . . . . . . . . . . . . Assembled 2 | . . 2 . . . . . . . . . . . . . . . . . . . . . . . . . . . . . . Surgeon 1 | . . . . . . . . . . . . . . . . . . . . . . . 1 . . . . . . . . . Mutant 1 | . . . . . . . . . . . . 1 . . . . . . . . . . . . . . . . . . . . Best Kill Streak 22 | . 5 3 8 3 7 5 1 4 1 8 7 1 4 2 . 4 5 8 1 16 12 2 14 4 . 6 4 3 22 12 11 19 Combat Bots Only 15 | . 5 3 5 3 6 2 1 4 1 8 4 1 4 2 . 3 4 8 1 7 10 2 11 4 . 6 4 3 15 12 10 15 Max Kills in Single Turn 9 | . 1 2 4 2 3 2 1 2 1 2 2 1 2 1 . 2 3 1 1 9 3 1 4 1 1 2 2 2 3 2 3 6 Gunslinging 2 | . . . 1 1 . . . 1 . 1 . . . . . . 1 . . 1 1 . 1 . . 1 . 1 1 1 1 2 Exploded 5 | . . 2 3 1 3 . . . . 2 . . 2 . . . . . . . . . 2 . . . . . 2 . . 5 Melee 1 | . . . . . . . . . . . . . . . . . . . . . . . . . . . . . 1 . . 1 Uniques/NPCs Destroyed 2 | . . . . . . . . . 1 . . . . 1 . . . . . . . . . . . . . . . . . . Imprinter (-7/Zion) Data Miner (-6/Data Miner) Combat | -11 -10 -10 -9 -9 -8 -7 -7 -7 -7 -6 -6 -6 -6 -6 -5 -5 -5 -5 -5 -5 -4 -4 -4 -4 -4 -4 -3 -3 -3 -2 -2 -2 -------- Run | Yrd Mat Min Mat Min Mat Fac Low Low Zio Pro Fac Low Low Dat Pro Fac Ext Cet Arc Hub Fac Was Fac Upp Upp War Pro Res Tes Res Qua Sec Hostile Shots Fired 4220 | . 107 17 122 26 125 233 4 48 . 84 197 4 28 47 . 29 20 94 12 138 269 1 580 13 29 9 9 14 343 157 578 883 Missed 994 | . 24 7 33 8 40 86 . 7 . 29 48 . 5 8 . 6 6 20 3 23 72 . 161 2 12 2 1 4 63 32 129 163 Damage Taken 54039 | . 864 100 1180 221 906 872 41 610 . 511 1708 45 547 1381 . 397 275 1799 239 3416 3832 53 8940 174 347 230 178 100 3371 1883 5514 14305 Core 3532 | . 145 10 176 21 42 54 . 99 . 26 114 . 37 99 . 20 32 51 23 191 237 . 553 44 58 16 . . 76 72 194 1142 Absorbed by Shields 15580 | . . . . . 332 387 16 146 . 201 100 . . . . . 115 . . . . . . . . . . 105 2250 1809 5309 4810 Reduced by Siege Mode 3800 | . . . . . . . . . . . . . . . . . . 187 20 83 287 . 748 13 . . 18 4 257 112 350 1721 Redirected to Shielding 18 | . . . . . . . . . . . . . . . . . . . . . . . . . . . . . . . . 18 Ignored by Resistances 1206 | . . . . . . 8 . 40 . 83 500 . . 429 . 25 . . . 121 . . . . . . . . . . . . Regen/Repaired (Parts) 11732 | . 101 . 229 . 211 . . . 1244 . 171 . . . . 501 . . . . . 673 24 . . 456 . . 1214 984 2513 3411 Core Remaining (%) 67 | 100 . 38 . 50 92 . . . . 74 . . . . 70 . . . . 68 . . . . . . 21 . 94 . . . Volleys Fired 1514 | . 66 13 111 14 113 66 3 11 6 28 70 7 11 23 . 26 26 23 11 17 75 32 105 18 48 17 21 9 87 65 176 216 Largest 6 | . 2 2 3 3 3 4 4 4 4 4 4 4 4 4 . 5 5 5 5 5 5 5 5 1 1 5 5 5 5 6 6 6 Hottest 285 | . 40 40 79 69 74 99 102 104 104 104 112 112 114 114 . 147 160 167 171 171 163 160 240 30 30 147 152 177 252 279 246 285 Shots Fired 5860 | . 131 23 321 34 320 257 14 45 24 85 273 28 26 92 . 128 129 107 54 85 364 158 417 17 48 83 41 45 352 275 969 915 Gun 5713 | . 131 19 314 30 310 257 14 45 24 77 273 28 20 92 . 128 129 107 54 85 364 158 411 17 48 83 41 45 329 251 969 860 Cannon 75 | . . . . . . . . . . . . . . . . . . . . . . . . . . . . . 12 24 . 39 Launcher 72 | . . 4 7 4 10 . . . . 8 . . 6 . . . . . . . . . 6 . . . . . 11 . . 16 Special . | . . . . . . . . . . . . . . . . . . . . . . . . . . . . . . . . . Kinetic 5659 | . 131 19 314 30 310 257 14 45 24 77 273 28 20 92 . 128 129 107 54 85 364 158 370 17 48 83 41 45 329 247 960 860 Thermal 129 | . . . . . . . . . . . . . . . . . . . . . . . 41 . . . . . 12 28 9 39 Explosive 72 | . . 4 7 4 10 . . . . 8 . . 6 . . . . . . . . . 6 . . . . . 11 . . 16 Electromagnetic . | . . . . . . . . . . . . . . . . . . . . . . . . . . . . . . . . . Robot Hit Streak 44 | . 12 5 33 25 24 17 15 23 17 7 19 16 18 10 . 19 31 29 21 30 38 21 35 36 17 33 4 23 34 40 44 40 Robot Miss Streak 7 | . 4 4 4 2 4 4 . 1 2 3 4 1 2 2 . 2 3 1 1 1 4 1 2 1 . 6 2 . 3 4 3 7 Penetration Max 2 | . . . . . . 1 . 1 . 1 1 . . . . 1 1 1 . 2 1 1 2 . . 1 1 1 1 1 2 2 Secondary Targets 172 | . 3 . 3 2 3 2 . 1 . 3 8 . 1 1 . 2 7 9 . 5 10 1 21 . . 6 . 2 9 11 22 40 Max Gunslinging Chain 2 | . 1 . 1 1 1 1 . 1 . 1 1 . 1 1 . 1 2 1 . 2 1 1 1 . . 1 . 1 1 2 2 2 Shots Hit Robots 4057 | . 84 9 212 24 216 175 6 31 20 48 201 21 17 74 . 87 72 91 42 63 236 128 316 15 4 66 12 19 248 196 679 645 Core Hits 1917 | . 41 10 106 15 110 72 3 10 6 41 82 5 17 27 . 36 39 45 19 49 108 21 164 9 2 34 9 13 117 65 252 390 Critical Kills 54 | . . . . 1 1 . . . . 1 . . . . . 3 2 . 2 2 6 1 5 . . 1 . . 6 2 11 10 Critical Parts Destroyed 104 | . . . . 1 3 1 . . . . 2 1 1 1 . 3 4 4 1 2 12 2 10 . . 1 . 2 6 7 23 17 Critical Strikes 178 | . . . . 2 4 2 . . . 1 2 1 1 1 . 6 6 4 3 4 21 7 16 . . 2 . 2 12 14 37 30 Meltdown 1 | . . . . . . . . . . . . . . . . . . . . . . . . . . . . . 1 . . . Destroy 176 | . . . . 2 4 1 . . . 1 2 1 1 1 . 6 6 4 3 4 21 7 16 . . 2 . 2 11 14 37 30 Impale 1 | . . . . . . 1 . . . . . . . . . . . . . . . . . . . . . . . . . . Melee Attacks 41 | . . . . . . 16 . . . . 3 8 . 11 . 3 . . . . . . . . . . . . . . . . Impact . | . . . . . . . . . . . . . . . . . . . . . . . . . . . . . . . . . Slashing . | . . . . . . . . . . . . . . . . . . . . . . . . . . . . . . . . . Piercing 41 | . . . . . . 16 . . . . 3 8 . 11 . 3 . . . . . . . . . . . . . . . . Sneak Attacks 9 | . . . . . . 6 . . . . . . . 1 . 2 . . . . . . . . . . . . . . . . Combat Hostiles . | . . . . . . . . . . . . . . . . . . . . . . . . . . . . . . . . . Follow-up Attacks . | . . . . . . . . . . . . . . . . . . . . . . . . . . . . . . . . . Damage Inflicted 123230 | . 950 205 3919 604 5024 3489 123 620 254 1755 3709 203 1025 1549 . 2291 2194 2425 1108 3009 6143 3348 11742 379 110 1618 430 831 10020 6175 18739 29239 Guns 104912 | . 925 78 3172 362 3548 3077 123 620 254 892 3647 199 294 1489 . 2174 2091 2425 1093 1926 6139 3348 9555 379 95 1618 430 822 7098 6045 18723 22271 Cannons 367 | . . . . . . . . . . . . . . . . . . . . . . . . . . . . . 132 130 . 105 Explosions 16878 | . . 112 674 222 1406 . . . . 863 . . 731 . . . . . . 1060 . . 2157 . . . . . 2790 . . 6863 Melee 550 | . . . . . . 373 . . . . . . . 60 . 117 . . . . . . . . . . . . . . . . Ramming 523 | . 25 15 73 20 70 39 . . . . 62 4 . . . . 103 . 15 23 4 . 30 . 15 . . 9 . . 16 . Kinetic 104148 | . 925 78 3172 362 3548 3077 123 620 254 892 3647 199 294 1489 . 2174 2091 2425 1093 1926 6139 3348 8810 379 95 1618 430 822 7098 6045 18704 22271 Thermal 2655 | . . . . . 418 . . . . . . . . . . . . . . . . . 1851 . . . . . 132 130 19 105 Explosive 14294 | . . 112 674 222 988 . . . . 863 . . 731 . . . . . . . . . 1051 . . . . . 2790 . . 6863 Electromagnetic 1060 | . . . . . . . . . . . . . . . . . . . . 1060 . . . . . . . . . . . . Impact . | . . . . . . . . . . . . . . . . . . . . . . . . . . . . . . . . . Slashing . | . . . . . . . . . . . . . . . . . . . . . . . . . . . . . . . . . Piercing 550 | . . . . . . 373 . . . . . . . 60 . 117 . . . . . . . . . . . . . . . . Highest Corruption 29 | . 1 1 . . 5 2 2 2 2 . . . . . . 2 2 2 2 21 16 16 25 25 29 29 1 . 9 4 17 22 Average Corruption 7 | . 1 1 . . 4 1 2 2 2 . . . . . . 1 2 2 1 14 15 16 19 25 25 29 1 . 5 2 7 20 Corruption Purged 2 | . . . . . . . . . . . . . . . . . . . 2 . . . . . . . . . . . . . Corruption Blocked 50 | . . . . . . . . . . . . . . . . . . . . . . . 31 . . . . . . 19 . . Effects 650 | . 10 10 . . 61 10 17 21 1 . . . . . . 7 33 7 3 2 28 60 80 28 26 . . . 27 6 82 131 Message Errors 136 | . 2 1 . . 17 2 5 3 . . . . . . . 2 4 2 1 . 5 11 16 11 8 . . . 4 2 18 22 Matter Fused 135 | . 3 4 . . 14 3 2 5 . . . . . . . 2 7 3 . 1 4 10 15 4 4 . . . 7 1 22 24 Heat Flow Errors 68 | . 1 1 . . 10 . . 4 . . . . . . . 1 6 . . . 1 5 9 1 3 . . . 2 . 9 15 Energy Discharges 74 | . 2 . . . 3 1 1 4 1 . . . . . . . 3 . . . 2 11 7 1 3 . . . 7 2 7 19 Parts Rejected 9 | . . . . . . . . . . . . . . . . . 1 . . . 1 . 3 . . . . . 2 . 1 1 Parts Fused 8 | . . . . . 2 1 . . . . . . . . . . . . . . 1 . 2 . . . . . . . 2 . Data Loss (minor) 70 | . 1 2 . . 7 1 4 2 . . . . . . . 2 5 1 1 1 3 11 5 8 1 . . . 1 . 7 7 Data Loss (major) 28 | . . 1 . . 1 . 3 . . . . . . . . . 5 1 . . 1 3 1 2 2 . . . 2 1 1 4 Misfires 20 | . . 1 . . 3 . 2 2 . . . . . . . . . . . . 1 3 2 . 2 . . . . . 2 2 Alerts 11 | . . . . . 2 1 . . . . . . . . . . 1 . . . . 1 3 . 1 . . . . . 1 1 Misdirections 1 | . . . . . . . . . . . . . . . . . . . . . . . . . . . . . . . . 1 Weapon Failures 90 | . 1 . . . 2 1 . 1 . . . . . . . . 1 . 1 . 9 5 17 1 2 . . . 2 . 12 35 Overload Shots 12 | . . . . . . . . . . . . . . . . . . . . . . . 1 . . . . . . 4 7 . Overflow Damage 1231 | . . . . 3 142 156 . . . . . . . . . . 15 . . 61 . . 231 . . . . . 164 . . 459 Projectiles . | . . . . . . . . . . . . . . . . . . . . . . . . . . . . . . . . . Explosions 1060 | . . . . 3 142 . . . . . . . . . . . . . . 61 . . 231 . . . . . 164 . . 459 Melee 171 | . . . . . . 156 . . . . . . . . . . 15 . . . . . . . . . . . . . . . Knockbacks 4 | . . . . . . . . . . . 2 1 . . . . 1 . . . . . . . . . . . . . . . Impact 4 | . . . . . . . . . . . 2 1 . . . . 1 . . . . . . . . . . . . . . . Kinetic . | . . . . . . . . . . . . . . . . . . . . . . . . . . . . . . . . . Secondary . | . . . . . . . . . . . . . . . . . . . . . . . . . . . . . . . . . Self-Inflicted Damage 1225 | . . . 19 . . . . . . . . . 38 . . . . . . 82 . . 81 . 5 . . . 417 . . 583 Shots 16 | . . . 1 . . . . . . . . . 1 . . . . . . 1 . . 2 . . . . . 5 . . 6 Rammed 62 | . 7 2 9 5 5 6 . . . . 7 1 . . . . 4 . 2 2 1 . 3 . 5 . . 1 . . 2 . Targets Rammed 71 | . 8 2 11 7 5 7 . . . . 9 1 . . . . 5 . 2 2 1 . 3 . 5 . . 1 . . 2 . Kicked . | . . . . . . . . . . . . . . . . . . . . . . . . . . . . . . . . . Crushed 9 | . 1 . 2 2 . 1 . . . . 2 . . . . . 1 . . . . . . . . . . . . . . . Highest Temperature 573 | . 180 114 130 136 276 311 24 340 48 318 238 . 108 213 . 103 213 81 12 199 336 197 282 110 116 205 105 366 573 359 348 313 Average Temperature 80 | . 34 20 36 44 62 89 15 164 19 130 75 . 46 115 . 23 94 21 6 59 134 77 71 67 68 63 20 118 121 117 110 68 Received Heat Transfer 7643 | . 312 . 414 66 366 257 . 228 . 129 156 . 175 . . 144 12 171 27 162 180 . 1887 . . 9 . 26 185 114 682 1941 Effects 18 | . . . . . . 3 . 2 . . . . . . . . . . . . 1 . 2 . . . . . 5 1 3 1 Shutdowns 1 | . . . . . . . . . . . . . . . . . . . . . . . . . . . . . 1 . . . Energy Bleed 8 | . . . . . . 2 . 1 . . . . . . . . . . . . 1 . . . . . . . 2 1 . 1 Interference 6 | . . . . . . 1 . . . . . . . . . . . . . . . . 2 . . . . . . . 3 . Matter Decay 2 | . . . . . . . . . . . . . . . . . . . . . . . . . . . . . 2 . . . Damage (minor) 1 | . . . . . . . . 1 . . . . . . . . . . . . . . . . . . . . . . . . Siege Activations 91 | . . . . . . . . . . . . . . . . . . 3 4 3 2 6 11 1 . 3 2 3 13 4 15 21 Total Turns 2608 | . . . . . . . . . . . . . . . . . . 52 38 66 117 168 302 9 . 33 57 57 335 140 765 469 Longest Duration 180 | . . . . . . . . . . . . . . . . . . 44 12 35 70 67 69 9 . 20 45 29 76 87 180 63 Robots Corrupted 1 | . . . . . . . . . . . . . . . . . . . . 1 . . . . . . . . . . . . Combat Hostiles . | . . . . . . . . . . . . . . . . . . . . . . . . . . . . . . . . . Parts Fried 11 | . . . . . . . . . . . . . . . . . 3 . . 7 . . . . . . . . . 1 . . Impact Corruptions 2 | . . . . . . . . . . . . . . . . . 2 . . . . . . . . . . . . . . . Robots Melted 1 | . . . . . . . . . . . . . . . . . . . . . . . . . . . . . 1 . . . Combat Hostiles 1 | . . . . . . . . . . . . . . . . . . . . . . . . . . . . . 1 . . . Parts Melted 6 | . . . . . 1 . . . . . . . . . . . 1 . . . . . 2 . . . . . . . . 2 Heat Transferred 2290 | . . . . . 350 . . . . . . . . . . . . . . . . . 1570 . . . . . 111 111 37 111 Parts Sabotaged 11 | . . . . . . . . . . . . . . . . . . . . . . . . . . . . . 2 . . 9 Parts Stolen . | . . . . . . . . . . . . . . . . . . . . . . . . . . . . . . . . . Parts Stripped . | . . . . . . . . . . . . . . . . . . . . . . . . . . . . . . . . . Power Chain Reactions 1 | . . . . . . . . . . . . . . . . . . . . 1 . . . . . . . . . . . . Alert | -11 -10 -10 -9 -9 -8 -7 -7 -7 -7 -6 -6 -6 -6 -6 -5 -5 -5 -5 -5 -5 -4 -4 -4 -4 -4 -4 -3 -3 -3 -2 -2 -2 ------- Run | Yrd Mat Min Mat Min Mat Fac Low Low Zio Pro Fac Low Low Dat Pro Fac Ext Cet Arc Hub Fac Was Fac Upp Upp War Pro Res Tes Res Qua Sec Peak Influence 3685 | . 405 135 761 514 696 483 . . . . 491 . . . . 132 479 532 263 1292 1139 346 1678 . . . . 89 1307 1220 1732 3685 Initial 955 | . . 16 . 296 2 316 . . . . . . . . . . 2 256 132 91 615 346 . . . . . . 19 687 632 955 Average 445 | . 155 32 231 246 179 200 . . . . 107 . . . . 47 138 368 237 432 926 159 886 . . . . 38 464 920 1174 2132 Maximum Alert Level 5 | . 2 . 3 2 2 2 . . . . 2 . . . . . 2 2 1 4 4 1 5 . . . . . 4 4 5 5 Low Security (%) 52 | 100 57 100 61 54 58 64 . . . . 75 . . . . 100 80 . 19 41 . 67 23 . . . . 100 56 . . . Level 1 14 | . 41 . 7 27 32 24 . . . . 12 . . . . . 5 77 80 34 . 32 . . . . . . 7 . . . Level 2 10 | . 1 . 23 17 9 11 . . . . 11 . . . . . 14 22 . 3 19 . 15 . . . . . . 8 14 . Level 3 8 | . . . 6 . . . . . . . . . . . . . . . . . 55 . 19 . . . . . 13 82 31 1 Level 4 7 | . . . . . . . . . . . . . . . . . . . . 20 24 . 32 . . . . . 21 8 26 38 Level 5 2 | . . . . . . . . . . . . . . . . . . . . . . . 5 . . . . . . . 28 . High Security 3 | . . . . . . . . . . . . . . . . . . . . . . . 2 . . . . . . . . 60 Max Security . | . . . . . . . . . . . . . . . . . . . . . . . . . . . . . . . . . Squads Dispatched 188 | . 5 . 7 . 8 11 . . . . 11 . . . . 4 3 . . 6 11 . 17 . . . . 4 16 5 23 57 Investigation 27 | . 5 . 2 . 3 2 . . . . 2 . . . . 1 2 . . . 3 . 2 . . . . 1 1 1 1 1 Extermination 25 | . . . . . . 4 . . . . 3 . . . . 2 . . . . 3 . 3 . . . . . 3 . 5 2 Reinforcement 42 | . . . 3 . 1 2 . . . . 1 . . . . 1 1 . . 2 4 . 7 . . . . 3 5 2 7 3 Assault 69 | . . . 2 . 1 . . . . . 1 . . . . . . . . 1 1 . 5 . . . . . 2 . 7 49 Garrison 20 | . . . . . 3 3 . . . . 4 . . . . . . . . 3 . . . . . . . . 3 . 3 1 Intercept 5 | . . . . . . . . . . . . . . . . . . . . . . . . . . . . . 2 2 . 1 Searches Triggered . | . . . . . . . . . . . . . . . . . . . . . . . . . . . . . . . . . Construction Impeded 11 | . . . . . . 1 . . . . . . . . . . . . . 1 3 . 1 . . . . . 2 . 3 . Haulers Reinforced 6 | . . . . . . . . . . . 1 . . . . . . . . . . . 4 . . . . . . 1 . . Active Scanning Responses . | . . . . . . . . . . . . . . . . . . . . . . . . . . . . . . . . . Cargo Convoy Interrupts 1 | . . . . . . . . . . . . . . . . . . . . . . . 1 . . . . . . . . . Stealth | -11 -10 -10 -9 -9 -8 -7 -7 -7 -7 -6 -6 -6 -6 -6 -5 -5 -5 -5 -5 -5 -4 -4 -4 -4 -4 -4 -3 -3 -3 -2 -2 -2 --------- Run | Yrd Mat Min Mat Min Mat Fac Low Low Zio Pro Fac Low Low Dat Pro Fac Ext Cet Arc Hub Fac Was Fac Upp Upp War Pro Res Tes Res Qua Sec Distress Signals 37 | . 1 . 1 . 4 1 . . . . . . . . . 1 3 1 . 1 2 . 3 . . . . 6 2 8 1 2 Communications Jammed . | . . . . . . . . . . . . . . . . . . . . . . . . . . . . . . . . . Distress Signals . | . . . . . . . . . . . . . . . . . . . . . . . . . . . . . . . . . Times Spotted 858 | . 26 7 50 10 54 27 2 4 2 17 26 1 7 4 . 12 33 13 12 20 30 5 71 4 5 42 2 6 47 24 73 222 Peak Tracking Total 20 | . 4 3 5 3 6 4 1 4 1 4 5 1 4 2 . 6 5 7 1 14 7 2 14 3 5 11 4 3 7 5 8 20 Tactical Retreats 22 | . . . 2 1 1 3 . . 2 . 1 . . . . 1 . . . 1 . . 1 . 4 . . . . . 4 1 Traps | -11 -10 -10 -9 -9 -8 -7 -7 -7 -7 -6 -6 -6 -6 -6 -5 -5 -5 -5 -5 -5 -4 -4 -4 -4 -4 -4 -3 -3 -3 -2 -2 -2 ------- Run | Yrd Mat Min Mat Min Mat Fac Low Low Zio Pro Fac Low Low Dat Pro Fac Ext Cet Arc Hub Fac Was Fac Upp Upp War Pro Res Tes Res Qua Sec Traps Triggered 10 | . 4 . 1 . 1 . . . . . . . . . . . 1 . . . 2 . . . . . . . . . . 1 Indirectly . | . . . . . . . . . . . . . . . . . . . . . . . . . . . . . . . . . Trap Hack Attempts . | . . . . . . . . . . . . . . . . . . . . . . . . . . . . . . . . . Triggered . | . . . . . . . . . . . . . . . . . . . . . . . . . . . . . . . . . Disarmed . | . . . . . . . . . . . . . . . . . . . . . . . . . . . . . . . . . Reprogrammed . | . . . . . . . . . . . . . . . . . . . . . . . . . . . . . . . . . Reused . | . . . . . . . . . . . . . . . . . . . . . . . . . . . . . . . . . Traps Extracted . | . . . . . . . . . . . . . . . . . . . . . . . . . . . . . . . . . Installed . | . . . . . . . . . . . . . . . . . . . . . . . . . . . . . . . . . Triggered 28 | . . . . . . . . 1 . 3 . . 1 . . . 1 . . . . . 2 . 1 19 . . . . . . Machines | -11 -10 -10 -9 -9 -8 -7 -7 -7 -7 -6 -6 -6 -6 -6 -5 -5 -5 -5 -5 -5 -4 -4 -4 -4 -4 -4 -3 -3 -3 -2 -2 -2 ---------- Run | Yrd Mat Min Mat Min Mat Fac Low Low Zio Pro Fac Low Low Dat Pro Fac Ext Cet Arc Hub Fac Was Fac Upp Upp War Pro Res Tes Res Qua Sec Machines Disabled 109 | . . 1 1 . 7 . . . . . 2 1 . . . 1 3 . 1 26 2 . 15 . . . . . 14 2 15 18 Max in Single Turn 25 | . . 1 1 . 3 . . . . . 1 1 . . . 1 2 . 1 25 1 . 3 . . . . . 3 1 1 2 Garrison Access 6 | . . . . . 1 1 . . . . . . . . . . . . . 1 . . . . . . . . 1 1 . 1 Network Hub 1 | . . . . . . . . . . . . . . . . . . . . 1 . . . . . . . . . . . . Energy Cycler 1 | . . . . . . . . . . . . . . . . . 1 . . . . . . . . . . . . . . . Machines Repaired . | . . . . . . . . . . . . . . . . . . . . . . . . . . . . . . . . . Machines Dismantled . | . . . . . . . . . . . . . . . . . . . . . . . . . . . . . . . . . Machines Sabotaged . | . . . . . . . . . . . . . . . . . . . . . . . . . . . . . . . . . Overloaded Fab Kills . | . . . . . . . . . . . . . . . . . . . . . . . . . . . . . . . . . Hacking | -11 -10 -10 -9 -9 -8 -7 -7 -7 -7 -6 -6 -6 -6 -6 -5 -5 -5 -5 -5 -5 -4 -4 -4 -4 -4 -4 -3 -3 -3 -2 -2 -2 --------- Run | Yrd Mat Min Mat Min Mat Fac Low Low Zio Pro Fac Low Low Dat Pro Fac Ext Cet Arc Hub Fac Was Fac Upp Upp War Pro Res Tes Res Qua Sec Machines Accessed 102 | . 11 . 11 . 12 6 1 2 . . 9 . . 4 . 5 9 . . 1 4 . 3 . 1 3 . 1 8 1 7 3 Terminals 62 | . 8 . 8 . 9 4 . . . . 5 . . . . 3 9 . . 1 2 . 1 . . . . . 5 . 5 2 Fabricators 10 | . . . . . . 1 . . . . 2 . . . . 1 . . . . 2 . 1 . . . . 1 2 . . . Repair Stations 10 | . 1 . 2 . 2 . . . . . 1 . . . . 1 . . . . . . . . . . . . 1 1 1 . Recycling Units 2 | . 2 . . . . . . . . . . . . . . . . . . . . . . . . . . . . . . . Scanalyzers 6 | . . . 1 . 1 . . . . . 1 . . . . . . . . . . . 1 . . . . . . . 1 1 Garrison Access 1 | . . . . . . 1 . . . . . . . . . . . . . . . . . . . . . . . . . . Total Hacks 318 | . 29 . 42 . 39 16 1 2 . . 22 . . 31 . 9 16 . . 7 24 . 12 . 1 4 . 2 28 4 17 12 Successful 189 | . 16 . 32 . 22 7 1 2 . . 10 . . 31 . 6 7 . . 5 10 . 8 . 1 4 . 2 11 2 7 5 Failed 129 | . 13 . 10 . 17 9 . . . . 12 . . . . 3 9 . . 2 14 . 4 . . . . . 17 2 10 7 Catastrophic 32 | . 3 . 3 . 6 1 . . . . 4 . . . . 1 . . . 1 5 . . . . . . . 2 1 3 2 Database Lockouts . | . . . . . . . . . . . . . . . . . . . . . . . . . . . . . . . . . Manual 122 | . 19 . 21 . 17 7 . . . . 7 . . . . 1 7 . . 6 17 . 2 . . 1 . . 6 . 2 9 Terminals 185 | . 25 . 31 . 24 12 . . . . 13 . . . . 4 16 . . 7 13 . 2 . . . . . 16 . 13 9 Fabricators 36 | . . . . . . 3 . . . . 6 . . . . 3 . . . . 11 . 3 . . . . 2 8 . . . Repair Stations 33 | . 2 . 8 . 8 . . . . . 2 . . . . 2 . . . . . . . . . . . . 4 4 3 . Recycling Units 2 | . 2 . . . . . . . . . . . . . . . . . . . . . . . . . . . . . . . Scanalyzers 22 | . . . 3 . 7 . . . . . 1 . . . . . . . . . . . 7 . . . . . . . 1 3 Garrison Access 1 | . . . . . . 1 . . . . . . . . . . . . . . . . . . . . . . . . . . Terminal Hacks 102 | . 7 . 16 . 6 3 1 2 . . 4 . . 31 . 2 5 . . 4 2 . 2 . 1 4 . . 4 . 4 4 Record 15 | . . . . . . . . . . . . . . 11 . . . . . . . . . . . 4 . . . . . . Part Schematic 15 | . . . . . 1 1 . . . . 2 . . 9 . . . . . 1 1 . . . . . . . . . . . Robot Schematic 8 | . . . . . . . . . . . . . . 8 . . . . . . . . . . . . . . . . . . Robot Analysis 6 | . 2 . 3 . 1 . . . . . . . . . . . . . . . . . . . . . . . . . . . Prototype ID Bank 8 | . 2 . 3 . . . . . . . . . . 3 . . . . . . . . . . . . . . . . . . Open Door 11 | . . . . . . . 1 2 . . . . . . . 1 5 . . . . . . . 1 . . . 1 . . . Level Access Points 1 | . . . . . . . . . . . . . . . . . . . . 1 . . . . . . . . . . . . Branch Access Points 4 | . . . 1 . . 1 . . . . . . . . . . . . . . 1 . 1 . . . . . . . . . Terminal Index 1 | . . . . . . 1 . . . . . . . . . . . . . . . . . . . . . . . . . . Fabricator Index 1 | . . . . . . . . . . . 1 . . . . . . . . . . . . . . . . . . . . . Alert Level 13 | . . . 4 . 1 . . . . . . . . . . . . . . 1 . . 1 . . . . . 2 . 2 2 Unreport Threat 10 | . . . 3 . 2 . . . . . . . . . . 1 . . . . . . . . . . . . . . 2 2 Hauler Manifests 7 | . 2 . 1 . 1 . . . . . 1 . . . . . . . . 1 . . . . . . . . 1 . . . Zone Layout 2 | . 1 . 1 . . . . . . . . . . . . . . . . . . . . . . . . . . . . . Fabricator Hacks 17 | . . . . . . 2 . . . . 2 . . . . 2 . . . . 4 . 2 . . . . 2 3 . . . Load Schematic 9 | . . . . . . 1 . . . . 2 . . . . 1 . . . . 2 . 1 . . . . 1 1 . . . Build 8 | . . . . . . 1 . . . . . . . . . 1 . . . . 2 . 1 . . . . 1 2 . . . Repair Station Hacks 24 | . 2 . 8 . 5 . . . . . 2 . . . . 2 . . . . . . . . . . . . 2 2 1 . Scan Component 14 | . 1 . 4 . 3 . . . . . 1 . . . . 1 . . . . . . . . . . . . 1 2 1 . Repair 10 | . 1 . 4 . 2 . . . . . 1 . . . . 1 . . . . . . . . . . . . 1 . . . Recycling Unit Hacks . | . . . . . . . . . . . . . . . . . . . . . . . . . . . . . . . . . Scanalyzer 15 | . . . 2 . 7 . . . . . . . . . . . . . . . . . 4 . . . . . . . 1 1 Insert Component 8 | . . . 1 . 3 . . . . . . . . . . . . . . . . . 2 . . . . . . . 1 1 Analyze 7 | . . . 1 . 4 . . . . . . . . . . . . . . . . . 2 . . . . . . . . . Garrison Access Hacks 1 | . . . . . . 1 . . . . . . . . . . . . . . . . . . . . . . . . . . Seal Access 1 | . . . . . . 1 . . . . . . . . . . . . . . . . . . . . . . . . . . Unauthorized Hacks 30 | . 7 . 6 . 4 1 . . . . 2 . . . . . 2 . . 1 4 . . . . . . . 2 . 1 . Terminals 25 | . 5 . 6 . 4 1 . . . . 2 . . . . . 2 . . 1 1 . . . . . . . 2 . 1 . Botnet 25 | . 5 . 6 . 4 1 . . . . 2 . . . . . 2 . . 1 1 . . . . . . . 2 . 1 . Fabricators 3 | . . . . . . . . . . . . . . . . . . . . . 3 . . . . . . . . . . . Prioritize 2 | . . . . . . . . . . . . . . . . . . . . . 2 . . . . . . . . . . . Haulers 1 | . . . . . . . . . . . . . . . . . . . . . 1 . . . . . . . . . . . Repair Stations . | . . . . . . . . . . . . . . . . . . . . . . . . . . . . . . . . . Recycling Units 2 | . 2 . . . . . . . . . . . . . . . . . . . . . . . . . . . . . . . Tunnel 2 | . 2 . . . . . . . . . . . . . . . . . . . . . . . . . . . . . . . Scanalyzers . | . . . . . . . . . . . . . . . . . . . . . . . . . . . . . . . . . Garrison Access . | . . . . . . . . . . . . . . . . . . . . . . . . . . . . . . . . . Data Cores Recovered 1 | . . . 1 . . . . . . . . . . . . . . . . . . . . . . . . . . . . . Used . | . . . . . . . . . . . . . . . . . . . . . . . . . . . . . . . . . Hacking Detections 78 | . 9 . 9 . 11 5 . . . . 8 . . . . 5 6 . . 1 4 . 2 . . . . 1 7 1 6 3 Full Trace Events 22 | . 3 . 1 . 2 2 . . . . 2 . . . . 1 1 . . . 3 . 2 . . . . 1 1 1 1 1 Feedback Events 2 | . . . . . 1 . . . . . . . . . . . . . . . . . 1 . . . . . . . . . Corruption 2 | . . . . . 1 . . . . . . . . . . . . . . . . . 1 . . . . . . . . . Feedback Blocked . | . . . . . . . . . . . . . . . . . . . . . . . . . . . . . . . . . Robot Schematics Acquired 12 | . . . . . . . . . . . . . . 8 . . . . . . . . . . . . . . 1 . 1 2 Robots Built . | . . . . . . . . . . . . . . . . . . . . . . . . . . . . . . . . . Authchips . | . . . . . . . . . . . . . . . . . . . . . . . . . . . . . . . . . Time . | . . . . . . . . . . . . . . . . . . . . . . . . . . . . . . . . . Total Robot Build Rating . | . . . . . . . . . . . . . . . . . . . . . . . . . . . . . . . . . Part Schematics Acquired 32 | . . . 1 . 3 1 . . . . 2 . . 9 . . . . . 1 1 . 1 . . . . . 7 . 2 4 Parts Built 9 | . . . . . . 1 . . . . . . . . . 1 . . . . 3 . . . . . . 2 2 . . . Authchips . | . . . . . . . . . . . . . . . . . . . . . . . . . . . . . . . . . Time 707 | . . . . . . 102 . . . . . . . . . 53 . . . . 160 . 204 . . . . 24 164 . . . Total Part Build Rating 57 | . . . . . . 8 . . . . . . . . . 6 . . . . 22 . . . . . . 6 15 . . . Parts Repaired 10 | . 1 . 4 . 2 . . . . . 1 . . . . 1 . . . . . . . . . . . . 1 . . . Time 313 | . 13 . 110 . 70 . . . . . 44 . . . . 22 . . . . . . . . . . . . 54 . . . Parts Recycled . | . . . . . . . . . . . . . . . . . . . . . . . . . . . . . . . . . Recycled Matter . | . . . . . . . . . . . . . . . . . . . . . . . . . . . . . . . . . Retrieved Matter . | . . . . . . . . . . . . . . . . . . . . . . . . . . . . . . . . . Retrieved Components . | . . . . . . . . . . . . . . . . . . . . . . . . . . . . . . . . . Parts Scanalyzed 6 | . . . 1 . 3 . . . . . . . . . . . . . . . . . 2 . . . . . . . . . Part Schematics Acquired 4 | . . . 1 . 2 . . . . . . . . . . . . . . . . . 1 . . . . . . . . . Parts Damaged 3 | . . . 1 . . . . . . . . . . . . . . . . . . . 2 . . . . . . . . . Bothacking | -11 -10 -10 -9 -9 -8 -7 -7 -7 -7 -6 -6 -6 -6 -6 -5 -5 -5 -5 -5 -5 -4 -4 -4 -4 -4 -4 -3 -3 -3 -2 -2 -2 ------------ Run | Yrd Mat Min Mat Min Mat Fac Low Low Zio Pro Fac Low Low Dat Pro Fac Ext Cet Arc Hub Fac Was Fac Upp Upp War Pro Res Tes Res Qua Sec Used RIF Installer . | . . . . . . . . . . . . . . . . . . . . . . . . . . . . . . . . . Robots Hacked . | . . . . . . . . . . . . . . . . . . . . . . . . . . . . . . . . . Non-combat . | . . . . . . . . . . . . . . . . . . . . . . . . . . . . . . . . . Combat . | . . . . . . . . . . . . . . . . . . . . . . . . . . . . . . . . . Robot Hacks Applied . | . . . . . . . . . . . . . . . . . . . . . . . . . . . . . . . . . Relay Couplers Released 13 | . . . . . . . . . . . . . . . . . . . . 2 . . . . . . . . 3 2 4 2 Machine Destruction 9 | . . . . . . . . . . . . . . . . . . . . 2 . . . . . . . . 3 2 . 2 Programmers 4 | . . . . . . . . . . . . . . . . . . . . . . . . . . . . . . . 4 . Fabnet Peak Effective % . | . . . . . . . . . . . . . . . . . . . . . . . . . . . . . . . . . Robots Rewired 12 | . . . . . . . . . . . . . . . . . 12 . . . . . . . . . . . . . . . Allies Hacked . | . . . . . . . . . . . . . . . . . . . . . . . . . . . . . . . . . Hacks Repelled . | . . . . . . . . . . . . . . . . . . . . . . . . . . . . . . . . . Allies | -11 -10 -10 -9 -9 -8 -7 -7 -7 -7 -6 -6 -6 -6 -6 -5 -5 -5 -5 -5 -5 -4 -4 -4 -4 -4 -4 -3 -3 -3 -2 -2 -2 -------- Run | Yrd Mat Min Mat Min Mat Fac Low Low Zio Pro Fac Low Low Dat Pro Fac Ext Cet Arc Hub Fac Was Fac Upp Upp War Pro Res Tes Res Qua Sec Total Allies 42 | . . 1 . . . . . . . . . . . . . . 19 . . . . 19 . . . . . 3 . . . . Largest Group 19 | . . 1 . . . . . . . . . . . . . . 7 . . . . 19 19 . . . . 3 . . . . Highest-Rated Group 702 | . . 31 . . . . . . . . . . . . . . 327 . . . . 702 702 . . . . 138 . . . . Highest-Rated Ally 159 | . . 31 . . . . . . . . . . . . . . 159 . . . . 50 50 . . . . 46 . . . . Total Orders 2 | . . . . . . . . . . . . . . . . . . . . . . . . . . . . 2 . . . . EXPLORE 2 | . . . . . . . . . . . . . . . . . . . . . . . . . . . . 2 . . . . Ally Attacks 321 | . . 3 . . . . . . . . . . . . . . 172 . . . . . 146 . . . . . . . . . Total Damage 7688 | . . 63 . . . . . . . . . . . . . . 3708 . . . . . 3917 . . . . . . . . . Kills 47 | . . 2 . . . . . . . . . . . . . . 20 . . . . . 25 . . . . . . . . . Allies Corrupted 1 | . . . . . . . . . . . . . . . . . . . . . . . 1 . . . . . . . . . Allies Melted 3 | . . . . . . . . . . . . . . . . . . . . . . . . . . . . . . 3 . . Intel | -11 -10 -10 -9 -9 -8 -7 -7 -7 -7 -6 -6 -6 -6 -6 -5 -5 -5 -5 -5 -5 -4 -4 -4 -4 -4 -4 -3 -3 -3 -2 -2 -2 ------- Run | Yrd Mat Min Mat Min Mat Fac Low Low Zio Pro Fac Low Low Dat Pro Fac Ext Cet Arc Hub Fac Was Fac Upp Upp War Pro Res Tes Res Qua Sec Robot Analysis Total 140 | . 2 . 3 . 1 . . . . . . . . 134 . . . . . . . . . . . . . . . . . . Derelict Logs Recovered 14 | . . 2 . 1 . . 2 1 2 . . 2 1 . 2 . . . . . . . . 1 . . . . . . . . Drone Launches 2 | . . . . . . . . . . . . . . . . . . . . . . . . . . . . 2 . . . . Drone Recoveries . | . . . . . . . . . . . . . . . . . . . . . . . . . . . . . . . . . Exploration | -11 -10 -10 -9 -9 -8 -7 -7 -7 -7 -6 -6 -6 -6 -6 -5 -5 -5 -5 -5 -5 -4 -4 -4 -4 -4 -4 -3 -3 -3 -2 -2 -2 ------------- Run | Yrd Mat Min Mat Min Mat Fac Low Low Zio Pro Fac Low Low Dat Pro Fac Ext Cet Arc Hub Fac Was Fac Upp Upp War Pro Res Tes Res Qua Sec Turns Passed 48673 | 73 1937 1952 5544 1743 3037 2452 1366 1693 2573 1412 2164 1038 935 577 1072 1030 1932 440 307 202 800 1242 1442 606 478 1860 860 744 1622 1052 2392 2096 Spaces Moved 16397 | 50 670 629 1499 509 1006 832 565 689 984 496 697 416 376 172 454 335 655 168 114 58 268 425 354 363 323 777 397 256 410 335 496 619 Core 740 | 20 . . . . . . . . . . . . . . . . . . . . . . . 363 323 34 . . . . . . Treads 15351 | 30 670 629 1499 509 1006 832 565 689 984 496 697 416 376 172 454 335 655 168 114 58 141 280 354 . . 743 397 256 410 335 496 585 Legs . | . . . . . . . . . . . . . . . . . . . . . . . . . . . . . . . . . Wheels 272 | . . . . . . . . . . . . . . . . . . . . . 127 145 . . . . . . . . . . Hover . | . . . . . . . . . . . . . . . . . . . . . . . . . . . . . . . . . Flight 34 | . . . . . . . . . . . . . . . . . . . . . . . . . . . . . . . . 34 Fastest Speed 27 | 50 160 240 320 320 235 238 238 238 238 241 231 231 235 235 235 235 242 160 160 160 138 138 163 50 50 50 160 240 227 227 227 27 Average Speed 235 | 129 239 295 320 320 237 238 238 238 239 241 236 232 235 235 235 239 242 171 160 160 160 214 238 150 97 190 160 240 231 227 237 192 Slowest Speed 321 | 160 240 320 320 320 240 238 238 238 241 321 237 235 235 235 235 242 242 242 160 160 240 245 320 200 200 240 240 240 240 227 240 255 Overloaded Moves 27 | . . . . . . . . . . . . . . . . . . . . . . . . . . . . . . . . 27 Propulsion Burnouts . | . . . . . . . . . . . . . . . . . . . . . . . . . . . . . . . . . Robots Hopped 2 | . . . . . . . . . . . . . . . . . . . . . . . . . . . . . . . . 2 Cave-ins Triggered 1 | . . . . . . . . . . . . . . . . . . . . . . . . . . . . . . . . 1 Teleports 29 | . . . . . . . . . . . . . . . . . . . . . . . . . . . . . . . . 29 Exploration Rate (%) 56 | 4 97 97 94 91 84 23 70 92 83 63 18 59 56 80 69 6 80 56 73 19 4 95 14 57 44 85 52 13 57 17 63 35 Regions Visited 32 Branch Regions 21 Pre-discovered Areas 34 | . 2 . . 1 . . . . 2 . . 1 . 27 . . . . . . . . . 1 . . . . . . . . Known Exits Taken 25 | . . . 1 1 . 1 1 1 1 1 1 1 1 1 1 1 1 1 1 1 . . 1 1 1 1 1 1 1 1 . . Unknown Exits Taken 5 | 1 1 1 . . 1 . . . . . . . . . . . . . . . . . . . . . . . . . 1 . Scrap Searched 27 | . . 3 . 1 . . 3 2 2 2 . 3 3 . 4 . . . . . . . . 1 2 . 1 . . . . . Spaces Dug 181 | . . 7 . . 24 7 . . . 14 3 1 18 . . 1 . . . . 1 . 28 . 15 . 10 1 5 9 25 12 Terrain Destroyed 1236 | . . 22 54 39 75 7 . . . 58 3 3 61 4 . 13 22 3 9 149 52 4 128 1 17 1 20 4 100 46 88 253 Melee 12 | . . . . . . 7 . . . . 3 1 . . . 1 . . . . . . . . . . . . . . . . Projectile 458 | . . . . . . . . . . 1 . . 1 4 . 11 6 3 9 16 51 4 38 1 12 1 20 3 31 44 83 119 AOE 744 | . . 22 54 39 75 . . . . 57 . . 60 . . . 16 . . 133 . . 89 . . . . . 69 . . 130 Terrain Rammed . | . . . . . . . . . . . . . . . . . . . . . . . . . . . . . . . . . Walls Destroyed . | . . . . . . . . . . . . . . . . . . . . . . . . . . . . . . . . . Machines Disabled . | . . . . . . . . . . . . . . . . . . . . . . . . . . . . . . . . . Actions | -11 -10 -10 -9 -9 -8 -7 -7 -7 -7 -6 -6 -6 -6 -6 -5 -5 -5 -5 -5 -5 -4 -4 -4 -4 -4 -4 -3 -3 -3 -2 -2 -2 --------- Run | Yrd Mat Min Mat Min Mat Fac Low Low Zio Pro Fac Low Low Dat Pro Fac Ext Cet Arc Hub Fac Was Fac Upp Upp War Pro Res Tes Res Qua Sec Total 23093 | 56 875 707 2013 584 1422 1134 581 718 1184 655 1036 459 407 271 460 484 934 261 207 117 452 683 731 408 440 1118 591 362 878 493 1266 1106 Wait 3611 | . 92 32 290 51 224 140 11 7 162 107 180 15 13 45 4 89 141 23 69 30 37 166 195 5 45 250 166 71 306 49 482 114 Move 16361 | 49 669 628 1498 508 1005 831 564 688 983 495 696 415 375 171 453 334 654 167 113 57 268 424 353 362 322 776 396 255 409 334 495 614 Hop 2 | . . . . . . . . . . . . . . . . . . . . . . . . . . . . . . . . 2 Pick Up 328 | 1 25 13 35 1 22 16 1 2 5 1 16 1 1 6 2 9 6 8 1 . 22 12 15 3 1 27 1 10 13 15 16 21 Fast Attach 131 | 6 4 . 5 . 6 5 . 1 9 5 2 . 1 . . . 7 7 4 . 3 8 4 3 5 8 . . 5 1 7 25 Attach 183 | . 3 1 4 . 5 3 . 2 . . 7 . 1 8 . 5 1 2 . 6 23 5 30 7 5 9 . 3 12 3 10 28 Detach 31 | . . . . . . . . . . 1 . . . 2 . . . . . . 2 3 2 6 4 8 . . . . 1 2 Swap 431 | . 2 8 18 2 15 29 1 4 7 12 40 8 4 4 . 15 13 12 2 5 9 18 17 . . 12 6 5 37 15 60 51 Drop 308 | . 6 10 41 1 27 21 1 2 12 6 13 4 1 1 1 3 16 19 5 . 4 15 7 4 5 11 1 8 9 11 17 26 Fire 1514 | . 66 13 111 14 113 66 3 11 6 28 70 7 11 23 . 26 26 23 11 17 75 32 105 18 48 17 21 9 87 65 176 216 Melee 41 | . . . . . . 16 . . . . 3 8 . 11 . 3 . . . . . . . . . . . . . . . . Ram 5 | . . . . . . . . . . . . . . . . . . . . . . . . . 5 . . . . . . . Kick . | . . . . . . . . . . . . . . . . . . . . . . . . . . . . . . . . . Crush 66 | . 8 2 11 7 5 7 . . . . 9 1 . . . . 5 . 2 2 1 . 3 . . . . 1 . . 2 . Escape Stasis 17 | . . . . . . . . . . . . . . . . . 2 . . . 8 . . . . . . . . . . 7 Rewire 64 | . . . . . . . . 1 . . . . . . . . 63 . . . . . . . . . . . . . . . Trap . | . . . . . . . . . . . . . . . . . . . . . . . . . . . . . . . . . Miscellaneous . | . . . . . . . . . . . . . . . . . . . . . . . . . . . . . . . . . Route ------- -11/Scrapyard -10/Materials (discovered 4 exits: *Mat x3 / [*Min]) -10/Mines (discovered 2 exits: *Mat x2) -9/Materials (discovered 4 exits: *Mat x3 / *Min) -9/Mines -8/Materials (discovered 2 exits: *Fac x2) -7/Factory (discovered 5 exits: *Fac / *Sto x2 / *Low x2) -7/Lower Caves -7/Lower Caves (discovered 2 exits: *Fac / *Zio) -7/Zion -6/Proximity Caves -6/Factory (discovered 3 exits: Fac / *Low x2) -6/Lower Caves -6/Lower Caves -6/Data Miner -5/Proximity Caves -5/Factory (discovered 2 exits: Upp / *Ext) -5/Extension (discovered 2 exits: *Fac / *Cet) -5/Cetus (discovered 2 exits: *Fac / *Arc) -5/Archives (discovered 2 exits: *Hub x2) -5/Hub_04(d) (discovered 4 exits: *Fac x4) -4/Factory (discovered 3 exits: *Upp x2 / Arm) -4/Waste -4/Factory (discovered 3 exits: *Upp x2 / Arm) -4/Upper Caves -4/Upper Caves -4/Warlord -3/Proximity Caves -3/Research (discovered 2 exits: *Res / *Tes) -3/Testing -2/Research -2/Quarantine (discovered 2 exits: [*Acc] / *Sec) -2/Section 7 History --------- Turn | Location | Event 13 | -11/Scrapyard | Discovered new exit (range 16) 74 | -11/Scrapyard | Entered Materials 306 | -10/Materials | Build established: Mutant 567 | -10/Materials | Discovered new exit (range 9) 643 | -10/Materials | Repaired Lgt. Treads 797 | -10/Materials | Discovered new exit (range 13) 863 | -10/Materials | Core integrity fell below 50% 1432 | -10/Materials | Discovered new exit (range 15) 1771 | -10/Materials | Discovered new exit (range 10) 2011 | -10/Materials | Entered Mines 2012 | -10/Mines | Assembled infested the area 2056 | -10/Mines | Met 8R-AWN 2151 | -10/Mines | Learned 2 Materials zone layouts 2317 | -10/Mines | Learned Materials stockpile data 2363 | -10/Mines | Received a Mining Laser from a helpful Derelict 2825 | -10/Mines | Build established: Scavenger-Mutant 2829 | -10/Mines | Discovered new exit (range 9) 2903 | -10/Mines | Discovered new exit (range 12) 3411 | -10/Mines | Found a damaged Exp. Sensor Array with a note attached 3418 | -10/Mines | Found Prototype Device 3963 | -10/Mines | Entered Materials 3963 | -9/Materials | Evolved 2 slots: Utility x1, Weapon x1 3964 | -9/Materials | Identified exit to Materials 4257 | -9/Materials | Build established: Scavenger-Gunner 4600 | -9/Materials | Repaired Lgt. Treads 4628 | -9/Materials | Repaired Lgt. Treads 4655 | -9/Materials | Repaired Lgt. Armor Plating 4831 | -9/Materials | Identified exit to Mines 5411 | -9/Materials | Discovered exit to Materials (range 8) 5961 | -9/Materials | Build established: Gunner 6752 | -9/Materials | Identified Exp. Sensor Array 8326 | -9/Materials | Discovered exit to Materials (range 13) 8363 | -9/Materials | First assault squad dispatched 8761 | -9/Materials | Repaired Imp. Treads 9507 | -9/Materials | Entered Mines 9514 | -9/Mines | Received a Rocket Launcher from a helpful Derelict 10057 | -9/Mines | Found a hidden stash of uninstalled traps 10166 | -9/Mines | Learned location of Zion (-7) 10646 | -9/Mines | Discovered exit to Materials (range 13) 11250 | -9/Mines | Entered Materials 11250 | -8/Materials | Evolved 2 slots: Propulsion x1, Utility x1 11560 | -8/Materials | Build established: Tank 12476 | -8/Materials | Discovered new exit (range 16) 13464 | -8/Materials | Garrison activated, responded to threat 13629 | -8/Materials | Repaired Adv. Treads 13673 | -8/Materials | Repaired Imp. Treads 14210 | -8/Materials | Discovered new exit (range 8) 14287 | -8/Materials | Entered Factory 14287 | -7/Factory | Evolved 2 slots: Utility x1, Weapon x1 14596 | -7/Factory | Build established: Skirmisher 14721 | -7/Factory | Discovered new exit (range 3) 14725 | -7/Factory | Identified exit to Storage 15168 | -7/Factory | Fabricated Exp. Sensor Array? 15420 | -7/Factory | Discovered new exit (range 5) 15427 | -7/Factory | Identified exit to Factory 15885 | -7/Factory | Garrison activated, responded to threat 16436 | -7/Factory | Identified exit to Lower Caves 16739 | -7/Factory | Entered Lower Caves 17546 | -7/Lower Caves | Learned Factory emergency access door positions 17948 | -7/Lower Caves | Discovered new exit (range 7) 18103 | -7/Lower Caves | Identified exit to Lower Caves 18105 | -7/Lower Caves | Entered another Lower Caves area 18106 | -7/Lower Caves | Discovered exit to Factory (range 7) 18618 | -7/Lower Caves | Learned Factory terminal intel 19597 | -7/Lower Caves | Found Prototype Device 19757 | -7/Lower Caves | Discovered new exit (range 15) 19790 | -7/Lower Caves | Identified exit to Zion 19798 | -7/Lower Caves | Entered Zion 19910 | -7/Zion | System corruption cleaned by Quarantine Array 19991 | -7/Zion | Found Prototype Special Weapon 19991 | -7/Zion | Identified RU-N14's Throwing Claymores 19995 | -7/Zion | Found RU-N14's Throwing Claymores 19999 | -7/Zion | Found RU-N14's Throwing Claymores 20003 | -7/Zion | Found RU-N14's Throwing Claymores 20103 | -7/Zion | Build established: Mutant 20300 | -7/Zion | Learned location of Warlord (-4) 20340 | -7/Zion | Learned location of Data Miner (-6) 20371 | -7/Zion | Learned location of 2 exits from Factory 20459 | -7/Zion | Build established: Skirmisher 20635 | -7/Zion | Learned Factory trap positions 21818 | -7/Zion | Visited the Megawrench Repair Shop 21826 | -7/Zion | Megawrench repaired 11 parts 21932 | -7/Zion | Discovered new exit (range 16) 22050 | -7/Zion | Attacked by Zionites 22165 | -7/Zion | Destroyed Imprinter 22201 | -7/Zion | Extracted access codes from Imprinter's data core 22368 | -7/Zion | Identified exit to Proximity Caves 22371 | -7/Zion | Entered Proximity Caves 22605 | -6/Proximity Caves | Destroyed 8 combat bots 23473 | -6/Proximity Caves | Attracted the attention of an 0b10 checkpoint 23566 | -6/Proximity Caves | Discovered exit to Factory (range 9) 23783 | -6/Proximity Caves | Entered Factory 23783 | -6/Factory | Evolved 2 slots: Propulsion x1, Utility x1 23784 | -6/Factory | Identified exit to Factory 23784 | -6/Factory | Identified exit to Lower Caves 23785 | -6/Factory | Loaded intel: 101 trap records 23787 | -6/Factory | Loaded intel: 25 terminal locations 25424 | -6/Factory | Discovered exit to Lower Caves (range 9) 25608 | -6/Factory | Garrison activated, responded to threat 25809 | -6/Factory | Repaired Imp. Medium Armor Plating 25883 | -6/Factory | First assault squad dispatched 25940 | -6/Factory | Garrison activated, responded to threat 25947 | -6/Factory | Entered Lower Caves 26254 | -6/Lower Caves | Build established: Scavenger-Skirmisher 26336 | -6/Lower Caves | Learned Factory emergency access door positions 26510 | -6/Lower Caves | Encountered a Warlord checkpoint 26677 | -6/Lower Caves | Attacked by a delusional Derelict stockpiling parts 26971 | -6/Lower Caves | Discovered new exit (range 5) 26981 | -6/Lower Caves | Identified exit to Lower Caves 26985 | -6/Lower Caves | Entered another Lower Caves area 26986 | -6/Lower Caves | Encountered a Warlord checkpoint 27152 | -6/Lower Caves | Learned Factory terminal intel 27725 | -6/Lower Caves | Discovered new exit (range 8) 27742 | -6/Lower Caves | Identified exit to Data Miner 27920 | -6/Lower Caves | Entered Data Miner 27920 | -6/Data Miner | Discovered new exit (range 6) 27965 | -6/Data Miner | Met Data Miner 28038 | -6/Data Miner | Learned location of Section 7 (-2) 28038 | -6/Data Miner | Acquired the access code to Warlord's prototype stash 28061 | -6/Data Miner | Received God Mode back door access code from Data Miner 28131 | -6/Data Miner | Destroyed Data Miner 28134 | -6/Data Miner | Found Prototype Hackware 28135 | -6/Data Miner | Interfaced with the Data Conduit 28252 | -6/Data Miner | Found Exp. Thermal Shield 28265 | -6/Data Miner | Lost 3 parts (2u1w) 28421 | -6/Data Miner | Found Prototype Hackware 28494 | -6/Data Miner | Identified exit to Proximity Caves 28497 | -6/Data Miner | Entered Proximity Caves 28578 | -5/Proximity Caves | Build established: Scavenger-Tank 29079 | -5/Proximity Caves | Discovered exit to Factory (range 8) 29569 | -5/Proximity Caves | Entered Factory 29569 | -5/Factory | Evolved 2 slots: Utility x1, Weapon x1 29570 | -5/Factory | Identified exit to Upper Caves 29572 | -5/Factory | Loaded intel: 263 machine locations 29573 | -5/Factory | Loaded intel: 28 terminal locations 29708 | -5/Factory | Fabricated Adv. Salvage Targeting Computer (x1) 29895 | -5/Factory | Build established: Scavenger-Skirmisher 30391 | -5/Factory | Repaired Hrd. Heavy Armor Plating 30584 | -5/Factory | Discovered new exit (range 6) 30591 | -5/Factory | Identified exit to Extension 30599 | -5/Factory | Entered Extension 30600 | -5/Extension | Loaded intel: 35 machine locations 30681 | -5/Extension | Rescued a captive Derelict 30761 | -5/Extension | Rescued a captive Derelict 30761 | -5/Extension | Rescued a captive Derelict 30836 | -5/Extension | Lost 3 allies 30960 | -5/Extension | Lost 4 allies 30971 | -5/Extension | Rescued A7 31665 | -5/Extension | Spotted B-75 Beast 31685 | -5/Extension | Destroyed B-75 Beast 31724 | -5/Extension | Spotted B-75 Beast 31748 | -5/Extension | Allies destroyed B-75 Beast 31900 | -5/Extension | Rescued a captive Derelict 31902 | -5/Extension | Rescued a captive Derelict 31924 | -5/Extension | Disrupted transfer network 32153 | -5/Extension | Rescued a captive Derelict 32170 | -5/Extension | Energy Cycler disabled 32177 | -5/Extension | Rescued a captive Derelict 32178 | -5/Extension | Rescued a captive Derelict 32351 | -5/Extension | Extracted ID and sensor layout for unrecognized location from A7's data core 32378 | -5/Extension | Lost 4 allies 32511 | -5/Extension | Discovered new exit (range 10) 32514 | -5/Extension | Discovered new exit (range 6) 32528 | -5/Extension | Identified exit to Cetus 32531 | -5/Extension | Entered Cetus 32532 | -5/Cetus | Loaded intel: 24 machine locations 32564 | -5/Cetus | Spotted Cetus Guard 32564 | -5/Cetus | Spotted Cetus Guard 32570 | -5/Cetus | Destroyed Cetus Guard 32571 | -5/Cetus | Spotted Cetus Guard 32578 | -5/Cetus | Destroyed Cetus Guard 32578 | -5/Cetus | Spotted Cetus Guard 32589 | -5/Cetus | Destroyed Cetus Guard 32596 | -5/Cetus | Destroyed Cetus Guard 32743 | -5/Cetus | Discovered new exit (range 16) 32816 | -5/Cetus | Spotted Cetus Guard 32816 | -5/Cetus | Spotted Cetus Guard 32816 | -5/Cetus | Spotted Cetus Guard 32816 | -5/Cetus | Spotted Cetus Guard 32843 | -5/Cetus | Destroyed Cetus Guard 32848 | -5/Cetus | Destroyed Cetus Guard 32855 | -5/Cetus | Destroyed Cetus Guard 32863 | -5/Cetus | Destroyed Cetus Guard 32875 | -5/Cetus | Discovered new exit (range 15) 32883 | -5/Cetus | Met Revision 17 32884 | -5/Cetus | Destroyed 8 combat bots 32970 | -5/Cetus | Identified exit to Archives 32971 | -5/Cetus | Entered Archives 32972 | -5/Archives | Loaded intel: 8 machine locations 33101 | -5/Archives | Discovered new exit (range 15) 33184 | -5/Archives | Discovered new exit (range 15) 33273 | -5/Archives | Identified exit to Hub_04(d) 33278 | -5/Archives | Entered Hub_04(d) 33279 | -5/Hub_04(d) | Loaded intel: 93 machine locations 33288 | -5/Hub_04(d) | Discovered new exit (range 15) 33303 | -5/Hub_04(d) | Identified exit to Factory 33365 | -5/Hub_04(d) | Garrison activated, responded to threat 33374 | -5/Hub_04(d) | Garrison activated, responded to threat 33402 | -5/Hub_04(d) | Destroyed 7 combat bots 33439 | -5/Hub_04(d) | Network Hub disabled 33442 | -5/Hub_04(d) | Spotted Lightning 33443 | -5/Hub_04(d) | Spotted Lightning 33445 | -5/Hub_04(d) | Spotted Lightning 33446 | -5/Hub_04(d) | Spotted Lightning 33450 | -5/Hub_04(d) | Spotted Lightning 33451 | -5/Hub_04(d) | Spotted Lightning 33454 | -5/Hub_04(d) | System corruption reached 10% 33480 | -5/Hub_04(d) | Entered Factory 33480 | -4/Factory | Evolved 2 slots: Power x1, Utility x1 33481 | -4/Factory | Identified exit to Armory 33482 | -4/Factory | Loaded intel: 266 machine locations 33487 | -4/Factory | Identified Quantum Router 33489 | -4/Factory | Identified Ghost Barrier 33498 | -4/Factory | Lost 9 parts (1p2n1u5w) 33625 | -4/Factory | Build established: Scavenger-Gunner 33675 | -4/Factory | Fabricated Exp. Sensor Array? 33702 | -4/Factory | Destroyed 7 combat bots 33738 | -4/Factory | Discovered new exit (range 16) 33759 | -4/Factory | First assault squad dispatched 33791 | -4/Factory | Fabricated Railgun? 33808 | -4/Factory | System corruption reached 10% 33841 | -4/Factory | Destroyed 10 combat bots 33849 | -4/Factory | Lost 10 parts (1n5u4w) 34202 | -4/Factory | Identified exit to Upper Caves 34280 | -4/Factory | Sucked down chute 34280 | -4/Factory | Entered Waste 34469 | -4/Waste | Spotted C-40 Crusher 34476 | -4/Waste | Spotted C-40 Crusher 34486 | -4/Waste | Destroyed C-40 Crusher 34499 | -4/Waste | Destroyed C-40 Crusher 34560 | -4/Waste | Spotted C-40 Crusher 34580 | -4/Waste | Destroyed C-40 Crusher 34642 | -4/Waste | Spotted C-40 Crusher 34667 | -4/Waste | Destroyed C-40 Crusher 34712 | -4/Waste | Destroyed C-40 Crusher 34789 | -4/Waste | Spotted C-40 Crusher 34806 | -4/Waste | Destroyed C-40 Crusher 35112 | -4/Waste | Build established: Scavenger-Skirmisher 35266 | -4/Waste | Discovered new exit (range 13) 35301 | -4/Waste | Warlord forces began an assault 35509 | -4/Waste | Identified exit to Factory 35522 | -4/Waste | Entered Factory 35522 | -4/Factory | Accompanied by 19 allies 35524 | -4/Factory | Loaded intel: 253 machine locations 35904 | -4/Factory | Lost 11 allies 36022 | -4/Factory | First assault squad dispatched 36073 | -4/Factory | Lost 4 allies 36144 | -4/Factory | Lost 3 allies 36407 | -4/Factory | Destroyed 11 combat bots 36410 | -4/Factory | Lost 4 parts (2u2w) 36425 | -4/Factory | Cargo convoy interrupted 36540 | -4/Factory | Found Exp. Core Analyzer 36660 | -4/Factory | Destroyed 9 combat bots 36665 | -4/Factory | Lost 3 parts (2n1u) 36922 | -4/Factory | High security lockdown imminent 36923 | -4/Factory | Core integrity fell below 50% 36964 | -4/Factory | Entered Upper Caves 36992 | -4/Upper Caves | Lost 25 parts (4p5n5u11w) 37173 | -4/Upper Caves | Build established: Mutant 37524 | -4/Upper Caves | Discovered new exit (range 5) 37569 | -4/Upper Caves | Identified exit to Upper Caves 37570 | -4/Upper Caves | Entered another Upper Caves area 38022 | -4/Upper Caves | Discovered new exit (range 9) 38026 | -4/Upper Caves | Identified exit to Warlord 38048 | -4/Upper Caves | Entered Warlord 38066 | -4/Warlord | System corruption cleaned by Quarantine Array 38627 | -4/Warlord | Build established: Derelict-Gunner 38861 | -4/Warlord | Learned Quarantine trap positions 38861 | -4/Warlord | Learned 4 Command zone layouts 38861 | -4/Warlord | Learned Research security intel 38861 | -4/Warlord | Learned Research repair station intel 38984 | -4/Warlord | Met Warlord 39008 | -4/Warlord | Opened Warlord's prototype stash 39009 | -4/Warlord | Warlord's base attacked by MAIN.C 39016 | -4/Warlord | Found Vortex Chain Reactor 39029 | -4/Warlord | Found Exp. Armor Integrity Analyzer 39034 | -4/Warlord | Found Prototype Hackware 39045 | -4/Warlord | Found Exp. Cloaking Device 39313 | -4/Warlord | Spotted B-90 Cyclops 39315 | -4/Warlord | Destroyed B-90 Cyclops 39350 | -4/Warlord | Spotted Striker 39353 | -4/Warlord | Spotted B-86 Titan 39359 | -4/Warlord | Warlord forces counterattacked 39360 | -4/Warlord | Destroyed B-86 Titan 39363 | -4/Warlord | Destroyed Striker 39399 | -4/Warlord | Lost 13 allies 39431 | -4/Warlord | Spotted Striker 39518 | -4/Warlord | Lost 15 allies 39544 | -4/Warlord | Build established: Scavenger-Gunner 39684 | -4/Warlord | Warlord base infiltrated, sounded retreat 39825 | -4/Warlord | Spotted Striker 39830 | -4/Warlord | Spotted Executioner 39839 | -4/Warlord | Spotted Executioner 39871 | -4/Warlord | Lost 3 allies 39876 | -4/Warlord | Found Adv. Kinecellerator 39879 | -4/Warlord | Found Exp. Targeting Computer 39891 | -4/Warlord | Discovered new exit (range 12) 39906 | -4/Warlord | Identified exit to Proximity Caves 39908 | -4/Warlord | Entered Proximity Caves 40727 | -3/Proximity Caves | Discovered new exit (range 14) 40749 | -3/Proximity Caves | Identified exit to Research 40768 | -3/Proximity Caves | Entered Research 40768 | -3/Research | Evolved 2 slots: Power x1, Utility x1 40770 | -3/Research | Loaded intel: 104 machine locations 40771 | -3/Research | Loaded intel: 4 repair station locations 40968 | -3/Research | Revision forces began assault on 0b10 40971 | -3/Research | Met up with Revision 17++ 41017 | -3/Research | Discovered new exit (range 4) 41024 | -3/Research | Identified exit to Research 41286 | -3/Research | Discovered new exit (range 36) 41338 | -3/Research | Identified System Mapper 41366 | -3/Research | Fabricated Lrn. Tractor Beam (x2) 41468 | -3/Research | Research terminal network offline 41489 | -3/Research | Found Hellfire Missile Launcher 41490 | -3/Research | Identified exit to Testing 41512 | -3/Research | Entered Testing 41513 | -3/Testing | Loaded intel: 75 machine locations 41600 | -3/Testing | Found Prototype Protection 41606 | -3/Testing | Identified Hvy. Regenerative Plating 41607 | -3/Testing | Found Prototype Protection 41675 | -3/Testing | Found Prototype Device 41675 | -3/Testing | Identified AEGIS Remote Shield 41897 | -3/Testing | Fabricated Exp. Biometal Heavy Treads? 42102 | -3/Testing | Repaired Centrium Heavy Treads 42203 | -3/Testing | Garrison activated, responded to threat 42402 | -3/Testing | Garrison activated, responded to threat 42541 | -3/Testing | Scanned by Researcher 42640 | -3/Testing | Destroyed 15 combat bots 42645 | -3/Testing | Discovered exit to Research (range 11) 42706 | -3/Testing | Found System Mapper 42733 | -3/Testing | Intercept squad dispatched 42733 | -3/Testing | Spotted Tracker 42733 | -3/Testing | Spotted Combat Programmer 42751 | -3/Testing | Destroyed Tracker 42757 | -3/Testing | Destroyed Combat Programmer 42762 | -3/Testing | First assault squad dispatched 42804 | -3/Testing | Lost 3 parts (1u2w) 42815 | -3/Testing | Destroyed 7 combat bots 42959 | -3/Testing | Fabricated Adv. Salvage Targeting Computer? 43132 | -3/Testing | Build established: Scavenger-Skirmisher 43134 | -3/Testing | Entered Research 43134 | -2/Research | Warlord forces began assault on 0b10 43134 | -2/Research | Evolved 2 slots: Utility x1, Weapon x1 43135 | -2/Research | Loaded intel: 117 machine locations 43135 | -2/Research | Identified SHELL Armor 43244 | -2/Research | Research machine network offline 43268 | -2/Research | Borebot progress halted 43402 | -2/Research | Spotted Striker 43406 | -2/Research | Spotted Striker 43414 | -2/Research | Destroyed Striker 43425 | -2/Research | Destroyed Striker 43451 | -2/Research | Build established: Scavenger-Executioner 43560 | -2/Research | Borebot progress halted 43633 | -2/Research | Borebot progress halted 43638 | -2/Research | Met up with Warlord 43668 | -2/Research | Spotted Striker 43683 | -2/Research | Destroyed Striker 43851 | -2/Research | Spotted Striker 43851 | -2/Research | Spotted Executioner 43854 | -2/Research | Destroyed Executioner 43862 | -2/Research | Destroyed Striker 43871 | -2/Research | Spotted Striker 43884 | -2/Research | Lost 3 allies 43899 | -2/Research | Spotted Striker 43926 | -2/Research | Warlord destroyed during the assault 43927 | -2/Research | Destroyed Striker 43952 | -2/Research | Destroyed 12 combat bots 44119 | -2/Research | Spotted Tracker 44125 | -2/Research | Destroyed Tracker 44168 | -2/Research | Discovered new exit (range 7) 44177 | -2/Research | Identified exit to Quarantine 44186 | -2/Research | Entered Quarantine 44187 | -2/Quarantine | Loaded intel: 20 trap records 44188 | -2/Quarantine | Loaded intel: 84 machine locations 44247 | -2/Quarantine | Found Alien Impact Weapon 44462 | -2/Quarantine | Garrison activated, responded to threat 44724 | -2/Quarantine | First assault squad dispatched 45156 | -2/Quarantine | Build established: Hacker-Executioner 45170 | -2/Quarantine | Discovered new exit (range 6) 45304 | -2/Quarantine | Destroyed 10 combat bots 45315 | -2/Quarantine | Found Alien Artifact 45607 | -2/Quarantine | Cryocooling Duct disabled 45622 | -2/Quarantine | Ambient heat levels rising (+20) 45622 | -2/Quarantine | Non-combat units ordered to evacuate 45663 | -2/Quarantine | Identified Core Reset Matrix 45779 | -2/Quarantine | Build established: Scavenger-Executioner 45926 | -2/Quarantine | Found Prototype Ballistic Gun 45927 | -2/Quarantine | Identified Multirail 46113 | -2/Quarantine | Spotted Fortress 46219 | -2/Quarantine | System corruption reached 10% 46260 | -2/Quarantine | Lost 4 parts (1p1u2w) 46284 | -2/Quarantine | Destroyed Fortress 46308 | -2/Quarantine | Found Vortex Chain Reactor 46325 | -2/Quarantine | Found Exp. Force Field 46510 | -2/Quarantine | Discovered new exit (range 5) 46578 | -2/Quarantine | Entered Section 7 46578 | -2/Section 7 | Spotted S7 Guard 46579 | -2/Section 7 | Loaded intel: 155 machine locations 46595 | -2/Section 7 | Garrison activated, responded to threat 46623 | -2/Section 7 | Destroyed S7 Guard 46677 | -2/Section 7 | Destroyed 8 combat bots 46716 | -2/Section 7 | Found Alien Artifact 46828 | -2/Section 7 | First assault squad dispatched 46923 | -2/Section 7 | Scanned by Researcher 46961 | -2/Section 7 | Found Alien Artifact 46961 | -2/Section 7 | Identified Integrated Dissipator 46961 | -2/Section 7 | Installed Integrated Dissipator, increased core heat dissipation (+20) 47381 | -2/Section 7 | Identified Core Regenerator 47381 | -2/Section 7 | Used Core Regenerator, restored core integrity (+301) 47416 | -2/Section 7 | High security lockdown imminent 47430 | -2/Section 7 | Spotted S7 Guard 47437 | -2/Section 7 | Destroyed 8 combat bots 47440 | -2/Section 7 | Found Alien Artifact 47475 | -2/Section 7 | Destroyed S7 Guard 47496 | -2/Section 7 | High security lockdown engaged 47546 | -2/Section 7 | Crushed by falling debris 47558 | -2/Section 7 | Spotted S7 Guard 47566 | -2/Section 7 | Identified Navigation Efficiency Matrix 47566 | -2/Section 7 | Installed Navigation Efficiency Matrix, process failed with unexpected side effects 47585 | -2/Section 7 | Found Alien Artifact 47594 | -2/Section 7 | Identified Core Membrane 47594 | -2/Section 7 | Installed Core Membrane, gained immunity to corruption 47601 | -2/Section 7 | Destroyed S7 Guard 47608 | -2/Section 7 | Spotted Striker 47609 | -2/Section 7 | Spotted B-90 Cyclops 47609 | -2/Section 7 | Spotted Striker 47619 | -2/Section 7 | Spotted Striker 47634 | -2/Section 7 | Destroyed Striker 47634 | -2/Section 7 | Destroyed Striker 47649 | -2/Section 7 | Destroyed Striker 47664 | -2/Section 7 | Destroyed B-90 Cyclops 47685 | -2/Section 7 | Destroyed 15 combat bots 47691 | -2/Section 7 | Lost 16 parts (2p1n5u8w) 47795 | -2/Section 7 | Intercept squad dispatched 47836 | -2/Section 7 | Found Alien Artifact 47854 | -2/Section 7 | Identified Integrity Redistributor 47854 | -2/Section 7 | Used Integrity Redistributor, redistributed integrity from core (-353) 47855 | -2/Section 7 | Core integrity fell below 50% 47897 | -2/Section 7 | Found Alien Artifact 48041 | -2/Section 7 | Destroyed 13 combat bots 48056 | -2/Section 7 | Spotted Executioner 48056 | -2/Section 7 | Spotted Striker 48056 | -2/Section 7 | Spotted Executioner 48063 | -2/Section 7 | Destroyed Executioner 48074 | -2/Section 7 | Destroyed Executioner 48109 | -2/Section 7 | Found Adv. Kinecellerator 48128 | -2/Section 7 | Found Exp. Core Analyzer 48134 | -2/Section 7 | Found Prototype Processor 48134 | -2/Section 7 | Identified Exp. Targeting Computer 48138 | -2/Section 7 | Found Exp. Core Analyzer 48147 | -2/Section 7 | Found Adv. Kinecellerator 48190 | -2/Section 7 | Spotted Striker 48190 | -2/Section 7 | Spotted Executioner 48208 | -2/Section 7 | Destroyed Striker 48211 | -2/Section 7 | Destroyed Executioner 48260 | -2/Section 7 | Spotted Investigator 48286 | -2/Section 7 | Spotted Striker 48299 | -2/Section 7 | Spotted Executioner 48299 | -2/Section 7 | Destroyed Striker 48306 | -2/Section 7 | Destroyed Executioner 48333 | -2/Section 7 | Destroyed Investigator 48334 | -2/Section 7 | Lost 3 parts (1p1u1w) 48342 | -2/Section 7 | Destroyed 15 combat bots 48472 | -2/Section 7 | Destroyed Striker 48602 | -2/Section 7 | Spotted Tracker 48616 | -2/Section 7 | Spotted Executioner 48616 | -2/Section 7 | Spotted Executioner 48616 | -2/Section 7 | Spotted Tracker 48619 | -2/Section 7 | Spotted Striker 48630 | -2/Section 7 | Destroyed Tracker 48633 | -2/Section 7 | Destroyed Striker 48646 | -2/Section 7 | Destroyed Executioner 48656 | -2/Section 7 | Core integrity fell below 20% 48674 | -2/Section 7 | Destroyed 8 combat bots 48674 | -2/Section 7 | Spotted Striker 48674 | -2/Section 7 | Spotted Executioner 48674 | -2/Section 7 | Spotted Striker 48674 | -2/Section 7 | Spotted Executioner 48674 | -2/Section 7 | Spotted Executioner 48674 | -2/Section 7 | Destroyed by H-88 Terminator with KE Penetrator Last Messages --------------- 48672_ I-47 Archangel unfolds itself. 48674_ C-30 ARC bursts open, deploying its payload. 48674_ Executioner unfolds itself. 48674_ P-80 Master unfolds itself. 48674_ M-36 Artificer unfolds itself. 48674_ C-30 ARC bursts open, deploying its payload. 48674_ Striker unfolds itself. 48674_ Executioner unfolds itself. 48674_ H-88 Terminator unfolds itself. 48674_ M-36 Artificer unfolds itself. 48674_ Slug penetrates Wall. 48674_ Cld. Q-thruster destroyed. 48674_ C-30 ARC bursts open, deploying its payload. 48674_ Striker unfolds itself. 48674_ H-88 Terminator unfolds itself. 48674_ Executioner unfolds itself. 48674_ I-47 Archangel unfolds itself. 48674_ Knocked back. 48674_ Slug penetrates Wall. 48674_ Penetrated by Slug. Map ----- +----------------------------------------------------+ | | | | | | | | | ?????????????????????#???#####???#############???? | | ?????????????????????# ! # #???? | | ?????????????????????# # """ "T" #???? | | ?????????????????????# """ """ + """ #???" | | ???##############????# """ """ #!""" = #??"" | | ???# ###### """ """ #["""* #???" | | ???# "" $$$ # +? ?#="""!/ # | | ???# " !$ $* # #??? ???#[ == !!% # | | ???# " """$ # !/=######+#############+######## | | ???# """ #! !=* =%!!|!!=! *=/= " | | ???# """"" + *=/**!=*%=%=!= / %! %%" | | ???# # = !!*%!!!!=!!* !=| =" | | ???# # [!=!!!!!%!!=! !%! | | ???# ####+####=*############+#+######## | | ???# #? ?#*=##?# ???? ?????????? | | ???# ## """ ## m%#?## ?""" """?"""??? | | ???# ## """ ##mE##??? """ """?"""??? | | ???############### """ ##p%#???? """ """?"""??? | | ?????????????????# ## p#???? ?????????? | | ?"""""""?????????# """ ##Kh#???? """ ?????????? | | ?"""""""????###### """ ##E #???? """ ?????????? | | ?"""""""????# *# """ ##@ #???? """???""T""??? | | ????????????# = # ## h#????? ? ???"""""??? | | ?????####+### !! ########%i############??????????? | | ??#### ! ] != [ /iKE #??????????? | | ] !!= !!==* #??????????? | | ??#### *!%!! =[%!= #??????????? | | ?????# !*!==!= [|[!% ############ | | ?"???# !%|=%###"######! % "% | | """??# !!!*!## # " | | """"?# [*==## # "" ##### | | """??+ !=$## "!" #""" " ##### | | ?????# ## "" ""#"T "%" # | | ???? # ## """"""#""" " # | | ???? # ##"""" ""# "" ^ % # | | ???? # ##########? # """ | | ?????# ##???????? # """ | | ?????# #????????# """"""" # """ | | ?????# #????????# """"""" + | | ?????# #???????????""""""" ##### | | ?????# ########????????? #???? | | ?????# ### ?? #???? | | ?????##+##??# ########??????????#######+#+##??? | | ????????????# # """""""????????? ? | | ????????????# # """""""????????? | | ???"????"???# + """""""????????? | +----------------------------------------------------+ Best States ------------- Heat Dissipation 159 Energy Generation 79 Energy Capacity 950 Matter Stores 550 Matter Capacity 550 Sight Range 16 Robot Scan Range 20 Terrain Scan Density 10 Armor Coverage 1800 Resistance: KI 30 Resistance: TH 30 Resistance: EM 20 Weapon Shielding 90 Weapon Cycling 20 Evasion (%) 64 Targeting Accuracy 12 Core Analysis 12 Recoil Reduction 4 Kinecelleration 50 Salvage Targeting 3 Offensive Hacking 28 Defensive Hacking 20 Item Schematics ----------------- Exp. Sensor Array | -9/Materials | Scanalyzed Gauss Rifle | -8/Materials | Scanalyzed Hacking Suite | -8/Materials | Scanalyzed Lrn. Tractor Beam | -8/Materials | Hacked Imp. Kinecellerator | -7/Factory | Hacked Adv. Salvage Targeting Computer | -6/Factory | Hacked Adv. Targeting Computer | -6/Factory | Hacked Combat Drone Bay | -6/Data Miner | Free Lgt. Regenerative Plating | -6/Data Miner | Free Enh. Armored Leg | -6/Data Miner | Free Exp. Heat Sink | -6/Data Miner | Free Cld. Plasma Rifle | -6/Data Miner | Free Centrium Wheel | -6/Data Miner | Free Point Defense Array | -6/Data Miner | Free Hvy. Disruptor Cannon | -6/Data Miner | Free Impulse Thruster Array | -6/Data Miner | Free Adv. Shield Generator | -5/Hub_04(d) | Hacked Railgun | -4/Factory | Hacked Centrium Heavy Treads | -4/Factory | Scanalyzed Hvy. Hardcell Cannon | -3/Testing | Archive Mni. Smartbomb Launcher | -3/Testing | Archive Adv. Matter Compressor | -3/Testing | Archive Imp. Matter Neutralizer | -3/Testing | Archive Exp. System Shield | -3/Testing | Archive Com. Mass Driver | -3/Testing | Archive Hvy. Tesla Rifle | -3/Testing | Archive Hdn. Centrium Leg | -2/Quarantine | Archive Hvy. Neutron Cannon | -2/Quarantine | Archive Tesla Bomb Launcher | -2/Section 7 | Archive Thunder Hammer | -2/Section 7 | Archive Exp. Energy Well | -2/Section 7 | Archive Prc. Matter Filter | -2/Section 7 | Archive Robot Schematics ------------------ G-50 Soldier | -6/Data Miner | Free P-60 Hacker | -6/Data Miner | Free X-72 Disruptor | -6/Data Miner | Free H-66 Slayer | -6/Data Miner | Free A-15 Conveyor | -6/Data Miner | Free A-27 Freighter | -6/Data Miner | Free Y-64 Sentinel | -6/Data Miner | Free M-30 Cleanser | -6/Data Miner | Free O-32 Director | -3/Testing | Archive R-06 Scavenger | -2/Quarantine | Archive A-02 Transporter | -2/Section 7 | Archive B-74 Champion | -2/Section 7 | Archive Fabricated ------------ Exp. Sensor Array | x1 | -7/Factory Adv. Salvage Targeting Computer | x1 | -5/Factory Exp. Sensor Array | x1 | -4/Factory Railgun | x2 | -4/Factory Lrn. Tractor Beam | x2 | -3/Research Exp. Biometal Heavy Treads | x1 | -3/Testing | Preloaded Adv. Salvage Targeting Computer | x1 | -3/Testing Alien Tech Used ----------------- Integrated Dissipator Core Regenerator Navigation Efficiency Matrix Core Membrane Integrity Redistributor Achievements -------------- None Challenges ------------ None Game ------ Seed AlphaReactiveAnalyzer Manual? 0 Play Time 05:17:26 Cumulative 1915.7 hours Start 2024.03.06 @ 21:11:39 End 2024.03.13 @ 22:28:27 Sessions 7 Manual Loads 0 Difficulty Rogue Special Mode None Game No. 668 Rogue 668 Adventurer 0 Explorer 0 Win Type - Total 149 Types 30/13/65/7/1/2/29/1/1 Lore% 96 Gallery% 96 Achievement% 88 Wizard Run 0 Options --------- Layout 0 ASCII 0 Keyboard 0 Movement Numpad Keybinds 0 Fullscreen 2 Font 18/SmallcapsGlow Map View 76x50 Zoom Use 0% Tactical HUD 1 Map Filters NONE Filters NONE Steam 1 RUN: 624b7a07-0131-4dcb-a4e0-de85cbec0dd1